Workbook

Sheet Profit & Loss (hidden)
A1: ='Data Sheet'!B1 -> KNR CONSTRUCTIONS LTD | H1: =UPDATE ->  | M1: SCREENER.IN
A3: Narration | B3: ='Data Sheet'!B16 -> 2015-03-31 | C3: ='Data Sheet'!C16 -> 2016-03-31 | D3: ='Data Sheet'!D16 -> 2017-03-31 | E3: ='Data Sheet'!E16 -> 2018-03-31 | F3: ='Data Sheet'!F16 -> 2019-03-31 | G3: ='Data Sheet'!G16 -> 2020-03-31 | H3: ='Data Sheet'!H16 -> 2021-03-31 | I3: ='Data Sheet'!I16 -> 2022-03-31 | J3: ='Data Sheet'!J16 -> 2023-03-31 | K3: ='Data Sheet'!K16 -> 2024-03-31 | L3: Trailing | M3: Best Case | N3: Worst Case
A4: Sales | B4: ='Data Sheet'!B17 -> 904.4 | C4: ='Data Sheet'!C17 -> 1191.68 | D4: ='Data Sheet'!D17 -> 1642.13 | E4: ='Data Sheet'!E17 -> 2069.6 | F4: ='Data Sheet'!F17 -> 2291.5 | G4: ='Data Sheet'!G17 -> 2451.68 | H4: ='Data Sheet'!H17 -> 2903.63 | I4: ='Data Sheet'!I17 -> 3605.82 | J4: ='Data Sheet'!J17 -> 4062.36 | K4: ='Data Sheet'!K17 -> 4429.49 | L4: =SUM(Quarters!H4:K4) -> 4433.46 | M4: =$K4+M23*K4 -> 5099.072761 | N4: =$K4+N23*L4 -> 4830.157634
A5: Expenses | B5: =SUM('Data Sheet'!B18,'Data Sheet'!B20:B24, -1*'Data Sheet'!B19) -> 777.58 | C5: =SUM('Data Sheet'!C18,'Data Sheet'!C20:C24, -1*'Data Sheet'!C19) -> 1019.36 | D5: =SUM('Data Sheet'!D18,'Data Sheet'!D20:D24, -1*'Data Sheet'!D19) -> 1377.67 | E5: =SUM('Data Sheet'!E18,'Data Sheet'!E20:E24, -1*'Data Sheet'!E19) -> 1620.21 | F5: =SUM('Data Sheet'!F18,'Data Sheet'!F20:F24, -1*'Data Sheet'!F19) -> 1753.93 | G5: =SUM('Data Sheet'!G18,'Data Sheet'!G20:G24, -1*'Data Sheet'!G19) -> 1828.69 | H5: =SUM('Data Sheet'!H18,'Data Sheet'!H20:H24, -1*'Data Sheet'!H19) -> 2204.72 | I5: =SUM('Data Sheet'!I18,'Data Sheet'!I20:I24, -1*'Data Sheet'!I19) -> 2804.11 | J5: =SUM('Data Sheet'!J18,'Data Sheet'!J20:J24, -1*'Data Sheet'!J19) -> 3144.68 | K5: =SUM('Data Sheet'!K18,'Data Sheet'!K20:K24, -1*'Data Sheet'!K19) -> 3381.74 | L5: =SUM(Quarters!H5:K5) -> 3322.84 | M5: =M4-M6 -> 3821.711019 | N5: 3764.102224
A6: Operating Profit | B6: =B4-B5 -> 126.82 | C6: =C4-C5 -> 172.32 | D6: 264.46 | E6: 449.39 | F6: 537.57 | G6: 622.99 | H6: 698.91 | I6: 801.71 | J6: 917.68 | K6: 1047.75 | L6: =SUM(Quarters!H6:K6) -> 1110.62 | M6: =M4*M24 -> 1277.361742 | N6: =N4*N24 -> 1066.05541
A7: Other Income | B7: ='Data Sheet'!B25 -> 13.62 | C7: ='Data Sheet'!C25 -> 45.75 | D7: ='Data Sheet'!D25 -> 29.57 | E7: ='Data Sheet'!E25 -> 54.94 | F7: ='Data Sheet'!F25 -> 74.76 | G7: ='Data Sheet'!G25 -> 66.39 | H7: ='Data Sheet'!H25 -> 143.99 | I7: ='Data Sheet'!I25 -> 77.73 | J7: ='Data Sheet'!J25 -> 97.67 | K7: ='Data Sheet'!K25 -> 144.69 | L7: =SUM(Quarters!H7:K7) -> 158.01 | M7: 0 | N7: 0
A8: Depreciation | B8: ='Data Sheet'!B26 -> 55.17 | C8: ='Data Sheet'!C26 -> 70.86 | D8: ='Data Sheet'!D26 -> 115.63 | E8: ='Data Sheet'!E26 -> 193.6 | F8: ='Data Sheet'!F26 -> 230.13 | G8: ='Data Sheet'!G26 -> 254.13 | H8: ='Data Sheet'!H26 -> 189.9 | I8: ='Data Sheet'!I26 -> 164.92 | J8: ='Data Sheet'!J26 -> 180.7 | K8: ='Data Sheet'!K26 -> 156.83 | L8: =SUM(Quarters!H8:K8) -> 150.5 | M8: =+$L8 -> 150.5 | N8: =+$L8 -> 150.5
A9: Interest | B9: ='Data Sheet'!B27 -> 13.8 | C9: ='Data Sheet'!C27 -> 57 | D9: ='Data Sheet'!D27 -> 72.67 | E9: ='Data Sheet'!E27 -> 82.5 | F9: ='Data Sheet'!F27 -> 89.84 | G9: ='Data Sheet'!G27 -> 110.78 | H9: ='Data Sheet'!H27 -> 133.21 | I9: ='Data Sheet'!I27 -> 151.14 | J9: ='Data Sheet'!J27 -> 153.4 | K9: ='Data Sheet'!K27 -> 105.67 | L9: =SUM(Quarters!H9:K9) -> 122.47 | M9: =+$L9 -> 122.47 | N9: =+$L9 -> 122.47
A10: Profit before tax | B10: ='Data Sheet'!B28 -> 71.47 | C10: ='Data Sheet'!C28 -> 90.21 | D10: ='Data Sheet'!D28 -> 105.73 | E10: ='Data Sheet'!E28 -> 228.23 | F10: ='Data Sheet'!F28 -> 292.36 | G10: ='Data Sheet'!G28 -> 324.47 | H10: ='Data Sheet'!H28 -> 519.79 | I10: ='Data Sheet'!I28 -> 563.38 | J10: ='Data Sheet'!J28 -> 681.25 | K10: ='Data Sheet'!K28 -> 929.94 | L10: =SUM(Quarters!H10:K10) -> 995.66 | M10: =M6+M7-SUM(M8:M9) -> 1004.391742 | N10: =N6+N7-SUM(N8:N9) -> 793.08541
A11: Tax | B11: ='Data Sheet'!B29 -> -0.28 | C11: ='Data Sheet'!C29 -> -21.89 | D11: ='Data Sheet'!D29 -> 6.99 | E11: ='Data Sheet'!E29 -> -0.73 | F11: ='Data Sheet'!F29 -> 27.47 | G11: ='Data Sheet'!G29 -> 68.53 | H11: ='Data Sheet'!H29 -> 136.96 | I11: ='Data Sheet'!I29 -> 196.99 | J11: ='Data Sheet'!J29 -> 241.84 | K11: ='Data Sheet'!K29 -> 196.17 | L11: =SUM(Quarters!H11:K11) -> 212.11 | M11: =IF($L10>0,$L11/$L10,0) -> 0.21303457 | N11: =IF($L10>0,$L11/$L10,0) -> 0.21303457
A12: Net profit | B12: ='Data Sheet'!B30 -> 69.76 | C12: ='Data Sheet'!C30 -> 112.13 | D12: ='Data Sheet'!D30 -> 114.9 | E12: ='Data Sheet'!E30 -> 243.48 | F12: ='Data Sheet'!F30 -> 270.51 | G12: ='Data Sheet'!G30 -> 265.51 | H12: ='Data Sheet'!H30 -> 407.38 | I12: ='Data Sheet'!I30 -> 381.84 | J12: ='Data Sheet'!J30 -> 458.01 | K12: ='Data Sheet'!K30 -> 777.4 | L12: =SUM(Quarters!H12:K12) -> 812.87 | M12: =M10-M11*M10 -> 790.4215792 | N12: =N10-N11*N10 -> 624.1308007
A13: EPS | B13: =IF('Data Sheet'!B93>0,B12/'Data Sheet'!B93,0) -> 2.482562278 | C13: =IF('Data Sheet'!C93>0,C12/'Data Sheet'!C93,0) -> 3.990391459 | D13: =IF('Data Sheet'!D93>0,D12/'Data Sheet'!D93,0) -> 4.086059744 | E13: =IF('Data Sheet'!E93>0,E12/'Data Sheet'!E93,0) -> 8.658605974 | F13: =IF('Data Sheet'!F93>0,F12/'Data Sheet'!F93,0) -> 9.619843528 | G13: =IF('Data Sheet'!G93>0,G12/'Data Sheet'!G93,0) -> 9.442034139 | H13: =IF('Data Sheet'!H93>0,H12/'Data Sheet'!H93,0) -> 14.48719772 | I13: =IF('Data Sheet'!I93>0,I12/'Data Sheet'!I93,0) -> 13.57894737 | J13: =IF('Data Sheet'!J93>0,J12/'Data Sheet'!J93,0) -> 16.28769559 | K13: =IF('Data Sheet'!K93>0,K12/'Data Sheet'!K93,0) -> 27.6458037 | L13: =IF('Data Sheet'!$B6>0,'Profit & Loss'!L12/'Data Sheet'!$B6,0) -> 28.9036248 | M13: =IF('Data Sheet'!$B6>0,'Profit & Loss'!M12/'Data Sheet'!$B6,0) -> 28.10541509 | N13: =IF('Data Sheet'!$B6>0,'Profit & Loss'!N12/'Data Sheet'!$B6,0) -> 22.19253078
A14: Price to earning | B14: =IF(B15>0,B15/B13,"") -> 17.11135321 | C14: =IF(C15>0,C15/C13,"") -> 12.76566485 | D14: 23.5875161 | E14: 16.39986857 | F14: 13.58442054 | G14: 10.40559678 | H14: 14.73024694 | I14: 20.92577519 | J14: 15.57617519 | K14: 8.909127862 | L14: =IF(L13>0,L15/L13,0) -> 11.8116673 | M14: =M25 -> 14.30568639 | N14: =N25 -> 11.8116673
A15: Price | B15: ='Data Sheet'!B90 -> 42.48 | C15: ='Data Sheet'!C90 -> 50.94 | D15: ='Data Sheet'!D90 -> 96.38 | E15: ='Data Sheet'!E90 -> 142 | F15: ='Data Sheet'!F90 -> 130.68 | G15: ='Data Sheet'!G90 -> 98.25 | H15: ='Data Sheet'!H90 -> 213.4 | I15: ='Data Sheet'!I90 -> 284.15 | J15: ='Data Sheet'!J90 -> 253.7 | K15: ='Data Sheet'!K90 -> 246.3 | L15: ='Data Sheet'!B8 -> 341.4 | M15: =M13*M14 -> 402.067254 | N15: =N13*N14 -> 262.1307901
A17: RATIOS:
A18: Dividend Payout | B18: =IF('Data Sheet'!B30>0, 'Data Sheet'!B31/'Data Sheet'!B30, 0) -> 0.0402809633 | C18: =IF('Data Sheet'!C30>0, 'Data Sheet'!C31/'Data Sheet'!C30, 0) -> 0.05012039597 | D18: =IF('Data Sheet'!D30>0, 'Data Sheet'!D31/'Data Sheet'!D30, 0) -> 0.06118363795 | E18: =IF('Data Sheet'!E30>0, 'Data Sheet'!E31/'Data Sheet'!E30, 0) -> 0.02308197799 | F18: =IF('Data Sheet'!F30>0, 'Data Sheet'!F31/'Data Sheet'!F30, 0) -> 0.02077557207 | G18: =IF('Data Sheet'!G30>0, 'Data Sheet'!G31/'Data Sheet'!G30, 0) -> 0.02647734549 | H18: =IF('Data Sheet'!H30>0, 'Data Sheet'!H31/'Data Sheet'!H30, 0) -> 0.01725661545 | I18: =IF('Data Sheet'!I30>0, 'Data Sheet'!I31/'Data Sheet'!I30, 0) -> 0.01841085271 | J18: =IF('Data Sheet'!J30>0, 'Data Sheet'!J31/'Data Sheet'!J30, 0) -> 0.01534900985 | K18: =IF('Data Sheet'!K30>0, 'Data Sheet'!K31/'Data Sheet'!K30, 0) -> 0.009042963725
A19: OPM | B19: =IF(B6>0,B6/B4,0) -> 0.1402255639 | C19: =IF(C6>0,C6/C4,0) -> 0.1446025779 | D19: 0.1610469329 | E19: 0.2171385775 | F19: 0.2345930613 | G19: 0.2541073876 | H19: 0.2407021556 | I19: 0.2223377762 | J19: 0.2258982463 | K19: 0.2365396468 | L19: 0.2505086321
G22: TRENDS: | H22: 10 YEARS | I22: 7 YEARS | J22: 5 YEARS | K22: 3 YEARS | L22: RECENT | M22: BEST | N22: WORST
G23: Sales Growth | H23: =IF(B4=0,"",POWER($K4/B4,1/9)-1) -> 0.1930699521 | I23: =IF(D4=0,"",POWER($K4/D4,1/7)-1) -> 0.15229517 | J23: =IF(F4=0,"",POWER($K4/F4,1/5)-1) -> 0.1408978791 | K23: =IF(H4=0,"",POWER($K4/H4, 1/3)-1) -> 0.1511647528 | L23: =IF(ISERROR(MAX(IF(J4=0,"",(K4-J4)/J4),IF(K4=0,"",(L4-K4)/K4))),"",MAX(IF(J4=0,"",(K4-J4)/J4),IF(K4=0,"",(L4-K4)/K4))) -> 0.09037357595 | M23: =MAX(K23:L23) -> 0.1511647528 | N23: =MIN(H23:L23) -> 0.09037357595
G24: OPM | H24: =IF(SUM(B4:$K$4)=0,"",SUMPRODUCT(B19:$K$19,B4:$K$4)/SUM(B4:$K$4)) -> 0.2207082027 | I24: =IF(SUM(E4:$K$4)=0,"",SUMPRODUCT(E19:$K$19,E4:$K$4)/SUM(E4:$K$4)) -> 0.2326937464 | J24: =IF(SUM(G4:$K$4)=0,"",SUMPRODUCT(G19:$K$19,G4:$K$4)/SUM(G4:$K$4)) -> 0.2342889295 | K24: =IF(SUM(I4:$K$4)=0, "", SUMPRODUCT(I19:$K$19,I4:$K$4)/SUM(I4:$K$4)) -> 0.2287333015 | L24: =L19 -> 0.2505086321 | M24: =MAX(K24:L24) -> 0.2505086321 | N24: =MIN(H24:L24) -> 0.2207082027
G25: Price to Earning | H25: =IF(ISERROR(AVERAGEIF(B14:$L14,">0")),"",AVERAGEIF(B14:$L14,">0")) -> 15.07340114 | I25: =IF(ISERROR(AVERAGEIF(E14:$L14,">0")),"",AVERAGEIF(E14:$L14,">0")) -> 14.0428598 | J25: =IF(ISERROR(AVERAGEIF(G14:$L14,">0")),"",AVERAGEIF(G14:$L14,">0")) -> 13.72643155 | K25: =IF(ISERROR(AVERAGEIF(I14:$L14,">0")),"",AVERAGEIF(I14:$L14,">0")) -> 14.30568639 | L25: =L14 -> 11.8116673 | M25: =MAX(K25:L25) -> 14.30568639 | N25: =MIN(H25:L25) -> 11.8116673

Sheet Quarters (hidden)
A1: ='Profit & Loss'!A1 -> KNR CONSTRUCTIONS LTD | E1: =UPDATE ->  | J1: SCREENER.IN
A3: Narration | B3: ='Data Sheet'!B41 -> 2022-03-31 | C3: ='Data Sheet'!C41 -> 2022-06-30 | D3: ='Data Sheet'!D41 -> 2022-09-30 | E3: ='Data Sheet'!E41 -> 2022-12-31 | F3: ='Data Sheet'!F41 -> 2023-03-31 | G3: ='Data Sheet'!G41 -> 2023-06-30 | H3: ='Data Sheet'!H41 -> 2023-09-30 | I3: ='Data Sheet'!I41 -> 2023-12-31 | J3: ='Data Sheet'!J41 -> 2024-03-31 | K3: ='Data Sheet'!K41 -> 2024-06-30
A4: Sales | B4: ='Data Sheet'!B42 -> 1102.09 | C4: ='Data Sheet'!C42 -> 980.45 | D4: ='Data Sheet'!D42 -> 961.65 | E4: ='Data Sheet'!E42 -> 874.93 | F4: ='Data Sheet'!F42 -> 1245.33 | G4: ='Data Sheet'!G42 -> 981.02 | H4: ='Data Sheet'!H42 -> 1038.45 | I4: ='Data Sheet'!I42 -> 996.01 | J4: ='Data Sheet'!J42 -> 1414 | K4: ='Data Sheet'!K42 -> 985
A5: Expenses | B5: ='Data Sheet'!B43 -> 823.22 | C5: ='Data Sheet'!C43 -> 769.19 | D5: ='Data Sheet'!D43 -> 698.36 | E5: ='Data Sheet'!E43 -> 678.14 | F5: ='Data Sheet'!F43 -> 999.36 | G5: ='Data Sheet'!G43 -> 765.28 | H5: ='Data Sheet'!H43 -> 806.86 | I5: ='Data Sheet'!I43 -> 770.1 | J5: ='Data Sheet'!J43 -> 1039.48 | K5: ='Data Sheet'!K43 -> 706.4
A6: Operating Profit | B6: ='Data Sheet'!B50 -> 278.87 | C6: ='Data Sheet'!C50 -> 211.26 | D6: ='Data Sheet'!D50 -> 263.29 | E6: ='Data Sheet'!E50 -> 196.79 | F6: ='Data Sheet'!F50 -> 245.97 | G6: ='Data Sheet'!G50 -> 215.74 | H6: ='Data Sheet'!H50 -> 231.59 | I6: ='Data Sheet'!I50 -> 225.91 | J6: ='Data Sheet'!J50 -> 374.52 | K6: ='Data Sheet'!K50 -> 278.6
A7: Other Income | B7: ='Data Sheet'!B44 -> 19.83 | C7: ='Data Sheet'!C44 -> 10.12 | D7: ='Data Sheet'!D44 -> 9.93 | E7: ='Data Sheet'!E44 -> 68.38 | F7: ='Data Sheet'!F44 -> 10.1 | G7: ='Data Sheet'!G44 -> 7.58 | H7: ='Data Sheet'!H44 -> 5.34 | I7: ='Data Sheet'!I44 -> 6.52 | J7: ='Data Sheet'!J44 -> 125.25 | K7: ='Data Sheet'!K44 -> 20.9
A8: Depreciation | B8: ='Data Sheet'!B45 -> 47.82 | C8: ='Data Sheet'!C45 -> 40.97 | D8: ='Data Sheet'!D45 -> 45.01 | E8: ='Data Sheet'!E45 -> 46.48 | F8: ='Data Sheet'!F45 -> 48.24 | G8: ='Data Sheet'!G45 -> 36.4 | H8: ='Data Sheet'!H45 -> 39.21 | I8: ='Data Sheet'!I45 -> 40.68 | J8: ='Data Sheet'!J45 -> 40.54 | K8: ='Data Sheet'!K45 -> 30.07
A9: Interest | B9: ='Data Sheet'!B46 -> 43.31 | C9: ='Data Sheet'!C46 -> 54.53 | D9: ='Data Sheet'!D46 -> 44.61 | E9: ='Data Sheet'!E46 -> 33.38 | F9: ='Data Sheet'!F46 -> 20.56 | G9: ='Data Sheet'!G46 -> 20.34 | H9: ='Data Sheet'!H46 -> 20.61 | I9: ='Data Sheet'!I46 -> 27.66 | J9: ='Data Sheet'!J46 -> 37.07 | K9: ='Data Sheet'!K46 -> 37.13
A10: Profit before tax | B10: ='Data Sheet'!B47 -> 207.57 | C10: ='Data Sheet'!C47 -> 125.88 | D10: ='Data Sheet'!D47 -> 183.6 | E10: ='Data Sheet'!E47 -> 185.31 | F10: ='Data Sheet'!F47 -> 187.27 | G10: ='Data Sheet'!G47 -> 166.58 | H10: ='Data Sheet'!H47 -> 177.11 | I10: ='Data Sheet'!I47 -> 164.09 | J10: ='Data Sheet'!J47 -> 422.16 | K10: ='Data Sheet'!K47 -> 232.3
A11: Tax | B11: ='Data Sheet'!B48 -> 67.86 | C11: ='Data Sheet'!C48 -> 33.61 | D11: ='Data Sheet'!D48 -> 85.09 | E11: ='Data Sheet'!E48 -> 77.89 | F11: ='Data Sheet'!F48 -> 45.24 | G11: ='Data Sheet'!G48 -> 38.7 | H11: ='Data Sheet'!H48 -> 34.56 | I11: ='Data Sheet'!I48 -> 28.26 | J11: ='Data Sheet'!J48 -> 94.65 | K11: ='Data Sheet'!K48 -> 54.64
A12: Net profit | B12: ='Data Sheet'!B49 -> 139.16 | C12: ='Data Sheet'!C49 -> 89.61 | D12: ='Data Sheet'!D49 -> 115.37 | E12: ='Data Sheet'!E49 -> 105.76 | F12: ='Data Sheet'!F49 -> 147.27 | G12: ='Data Sheet'!G49 -> 137.11 | H12: ='Data Sheet'!H49 -> 147.38 | I12: ='Data Sheet'!I49 -> 139.61 | J12: ='Data Sheet'!J49 -> 353.3 | K12: ='Data Sheet'!K49 -> 172.58
A14: OPM | B14: =IF(B4>0,B6/B4,"") -> 0.2530374107 | C14: =IF(C4>0,C6/C4,"") -> 0.2154724871 | D14: 0.2737898404 | E14: 0.2249208508 | F14: 0.197513912 | G14: 0.2199139671 | H14: 0.2230150705 | I14: 0.2268149918 | J14: 0.2648656294 | K14: 0.2828426396

Sheet Balance Sheet (hidden)
A1: ='Profit & Loss'!A1 -> KNR CONSTRUCTIONS LTD | E1: =UPDATE ->  | J1: SCREENER.IN
A3: Narration | B3: ='Data Sheet'!B56 -> 2015-03-31 | C3: ='Data Sheet'!C56 -> 2016-03-31 | D3: ='Data Sheet'!D56 -> 2017-03-31 | E3: ='Data Sheet'!E56 -> 2018-03-31 | F3: ='Data Sheet'!F56 -> 2019-03-31 | G3: ='Data Sheet'!G56 -> 2020-03-31 | H3: ='Data Sheet'!H56 -> 2021-03-31 | I3: ='Data Sheet'!I56 -> 2022-03-31 | J3: ='Data Sheet'!J56 -> 2023-03-31 | K3: ='Data Sheet'!K56 -> 2024-03-31
A4: Equity Share Capital | B4: ='Data Sheet'!B57 -> 28.12 | C4: ='Data Sheet'!C57 -> 28.12 | D4: ='Data Sheet'!D57 -> 28.12 | E4: ='Data Sheet'!E57 -> 28.12 | F4: ='Data Sheet'!F57 -> 28.12 | G4: ='Data Sheet'!G57 -> 28.12 | H4: ='Data Sheet'!H57 -> 56.25 | I4: ='Data Sheet'!I57 -> 56.25 | J4: ='Data Sheet'!J57 -> 56.25 | K4: ='Data Sheet'!K57 -> 56.25
A5: Reserves | B5: ='Data Sheet'!B58 -> 760.35 | C5: ='Data Sheet'!C58 -> 670.5 | D5: ='Data Sheet'!D58 -> 777.3 | E5: ='Data Sheet'!E58 -> 1011.14 | F5: ='Data Sheet'!F58 -> 1274.2 | G5: ='Data Sheet'!G58 -> 1524.04 | H5: ='Data Sheet'!H58 -> 1903.07 | I5: ='Data Sheet'!I58 -> 2262.96 | J5: ='Data Sheet'!J58 -> 2714.45 | K5: ='Data Sheet'!K58 -> 3497.9
A6: Borrowings | B6: ='Data Sheet'!B59 -> 733.64 | C6: ='Data Sheet'!C59 -> 735.41 | D6: ='Data Sheet'!D59 -> 721.14 | E6: ='Data Sheet'!E59 -> 770.4 | F6: ='Data Sheet'!F59 -> 758.21 | G6: ='Data Sheet'!G59 -> 874.54 | H6: ='Data Sheet'!H59 -> 764.37 | I6: ='Data Sheet'!I59 -> 1463.54 | J6: ='Data Sheet'!J59 -> 652.06 | K6: ='Data Sheet'!K59 -> 1262.43
A7: Other Liabilities | B7: ='Data Sheet'!B60 -> 489.54 | C7: ='Data Sheet'!C60 -> 551.59 | D7: ='Data Sheet'!D60 -> 715.63 | E7: ='Data Sheet'!E60 -> 798.32 | F7: ='Data Sheet'!F60 -> 668.53 | G7: ='Data Sheet'!G60 -> 1076.64 | H7: ='Data Sheet'!H60 -> 1283.49 | I7: ='Data Sheet'!I60 -> 1487.58 | J7: ='Data Sheet'!J60 -> 919.25 | K7: ='Data Sheet'!K60 -> 987.21
A8: Total | B8: ='Data Sheet'!B61 -> 2011.65 | C8: ='Data Sheet'!C61 -> 1985.62 | D8: ='Data Sheet'!D61 -> 2242.19 | E8: ='Data Sheet'!E61 -> 2607.98 | F8: ='Data Sheet'!F61 -> 2729.06 | G8: ='Data Sheet'!G61 -> 3503.34 | H8: ='Data Sheet'!H61 -> 4007.18 | I8: ='Data Sheet'!I61 -> 5270.33 | J8: ='Data Sheet'!J61 -> 4342.01 | K8: ='Data Sheet'!K61 -> 5803.79
A10: Net Block | B10: ='Data Sheet'!B62 -> 234.94 | C10: ='Data Sheet'!C62 -> 737.79 | D10: ='Data Sheet'!D62 -> 1228.44 | E10: ='Data Sheet'!E62 -> 1341.35 | F10: ='Data Sheet'!F62 -> 1320.52 | G10: ='Data Sheet'!G62 -> 1274.82 | H10: ='Data Sheet'!H62 -> 776 | I10: ='Data Sheet'!I62 -> 889.9 | J10: ='Data Sheet'!J62 -> 890.49 | K10: ='Data Sheet'!K62 -> 806.36
A11: Capital Work in Progress | B11: ='Data Sheet'!B63 -> 1108.26 | C11: ='Data Sheet'!C63 -> 428.71 | D11: ='Data Sheet'!D63 -> 91.26 | E11: ='Data Sheet'!E63 -> 1.15 | F11: ='Data Sheet'!F63 -> 0.01 | G11: ='Data Sheet'!G63 -> 10.15 | H11: ='Data Sheet'!H63 -> 2.38 | I11: ='Data Sheet'!I63 -> 20.62 | J11: ='Data Sheet'!J63 -> 2.51 | K11: ='Data Sheet'!K63 -> 2.18
A12: Investments | B12: ='Data Sheet'!B64 -> 23.64 | C12: ='Data Sheet'!C64 -> 105.87 | D12: ='Data Sheet'!D64 -> 73.59 | E12: ='Data Sheet'!E64 -> 52.67 | F12: ='Data Sheet'!F64 -> 51.93 | G12: ='Data Sheet'!G64 -> 65.84 | H12: ='Data Sheet'!H64 -> 61.67 | I12: ='Data Sheet'!I64 -> 73.26 | J12: ='Data Sheet'!J64 -> 72.35 | K12: ='Data Sheet'!K64 -> 115.18
A13: Other Assets | B13: ='Data Sheet'!B65 -> 644.81 | C13: ='Data Sheet'!C65 -> 713.25 | D13: ='Data Sheet'!D65 -> 848.9 | E13: ='Data Sheet'!E65 -> 1212.81 | F13: ='Data Sheet'!F65 -> 1356.6 | G13: ='Data Sheet'!G65 -> 2152.53 | H13: ='Data Sheet'!H65 -> 3167.13 | I13: ='Data Sheet'!I65 -> 4286.55 | J13: ='Data Sheet'!J65 -> 3376.66 | K13: ='Data Sheet'!K65 -> 4880.07
A14: Total | B14: ='Data Sheet'!B66 -> 2011.65 | C14: ='Data Sheet'!C66 -> 1985.62 | D14: ='Data Sheet'!D66 -> 2242.19 | E14: ='Data Sheet'!E66 -> 2607.98 | F14: ='Data Sheet'!F66 -> 2729.06 | G14: ='Data Sheet'!G66 -> 3503.34 | H14: ='Data Sheet'!H66 -> 4007.18 | I14: ='Data Sheet'!I66 -> 5270.33 | J14: ='Data Sheet'!J66 -> 4342.01 | K14: ='Data Sheet'!K66 -> 5803.79
A16: Working Capital | B16: =B13-B7 -> 155.27 | C16: =C13-C7 -> 161.66 | D16: 133.27 | E16: 414.49 | F16: 688.07 | G16: 1075.89 | H16: 1883.64 | I16: 2798.97 | J16: 2457.41 | K16: 3892.86
A17: Debtors | B17: ='Data Sheet'!B67 -> 110.13 | C17: ='Data Sheet'!C67 -> 134.6 | D17: ='Data Sheet'!D67 -> 181.69 | E17: ='Data Sheet'!E67 -> 269.14 | F17: ='Data Sheet'!F67 -> 96.8 | G17: ='Data Sheet'!G67 -> 174.65 | H17: ='Data Sheet'!H67 -> 332.87 | I17: ='Data Sheet'!I67 -> 598.41 | J17: ='Data Sheet'!J67 -> 622.9 | K17: ='Data Sheet'!K67 -> 673.98
A18: Inventory | B18: ='Data Sheet'!B68 -> 55.73 | C18: ='Data Sheet'!C68 -> 61.83 | D18: ='Data Sheet'!D68 -> 80.54 | E18: ='Data Sheet'!E68 -> 75.05 | F18: ='Data Sheet'!F68 -> 101.19 | G18: ='Data Sheet'!G68 -> 123.16 | H18: ='Data Sheet'!H68 -> 147.99 | I18: ='Data Sheet'!I68 -> 227.41 | J18: ='Data Sheet'!J68 -> 234.23 | K18: ='Data Sheet'!K68 -> 220.87
A20: Inventory Turnover | B20: =IF('Balance Sheet'!B18>0,'Profit & Loss'!B4/'Balance Sheet'!B18,0) -> 16.22824332 | C20: =IF('Balance Sheet'!C18>0,'Profit & Loss'!C4/'Balance Sheet'!C18,0) -> 19.27349183 | D20: =IF('Balance Sheet'!D18>0,'Profit & Loss'!D4/'Balance Sheet'!D18,0) -> 20.38899926 | E20: =IF('Balance Sheet'!E18>0,'Profit & Loss'!E4/'Balance Sheet'!E18,0) -> 27.57628248 | F20: =IF('Balance Sheet'!F18>0,'Profit & Loss'!F4/'Balance Sheet'!F18,0) -> 22.64551833 | G20: =IF('Balance Sheet'!G18>0,'Profit & Loss'!G4/'Balance Sheet'!G18,0) -> 19.90646314 | H20: =IF('Balance Sheet'!H18>0,'Profit & Loss'!H4/'Balance Sheet'!H18,0) -> 19.62044733 | I20: =IF('Balance Sheet'!I18>0,'Profit & Loss'!I4/'Balance Sheet'!I18,0) -> 15.85603096 | J20: =IF('Balance Sheet'!J18>0,'Profit & Loss'!J4/'Balance Sheet'!J18,0) -> 17.34346582 | K20: =IF('Balance Sheet'!K18>0,'Profit & Loss'!K4/'Balance Sheet'!K18,0) -> 20.05473808
A21: Inventory Days | B21: =IF('Profit & Loss'!B4>0,'Balance Sheet'!B18/('Profit & Loss'!B4/365),0) -> 22.49165192 | C21: =IF('Profit & Loss'!C4>0,'Balance Sheet'!C18/('Profit & Loss'!C4/365),0) -> 18.93792797 | D21: =IF('Profit & Loss'!D4>0,'Balance Sheet'!D18/('Profit & Loss'!D4/365),0) -> 17.90181045 | E21: =IF('Profit & Loss'!E4>0,'Balance Sheet'!E18/('Profit & Loss'!E4/365),0) -> 13.23601179 | F21: =IF('Profit & Loss'!F4>0,'Balance Sheet'!F18/('Profit & Loss'!F4/365),0) -> 16.11797949 | G21: =IF('Profit & Loss'!G4>0,'Balance Sheet'!G18/('Profit & Loss'!G4/365),0) -> 18.33575344 | H21: =IF('Profit & Loss'!H4>0,'Balance Sheet'!H18/('Profit & Loss'!H4/365),0) -> 18.60304171 | I21: =IF('Profit & Loss'!I4>0,'Balance Sheet'!I18/('Profit & Loss'!I4/365),0) -> 23.01963215 | J21: =IF('Profit & Loss'!J4>0,'Balance Sheet'!J18/('Profit & Loss'!J4/365),0) -> 21.04538987 | K21: =IF('Profit & Loss'!K4>0,'Balance Sheet'!K18/('Profit & Loss'!K4/365),0) -> 18.20018783
A22: Debtor Days | B22: =IF('Profit & Loss'!B4>0,'Balance Sheet'!B17/('Profit & Loss'!B4/365),0) -> 44.44653914 | C22: =IF('Profit & Loss'!C4>0,'Balance Sheet'!C17/('Profit & Loss'!C4/365),0) -> 41.22667159 | D22: =IF('Profit & Loss'!D4>0,'Balance Sheet'!D17/('Profit & Loss'!D4/365),0) -> 40.38465286 | E22: =IF('Profit & Loss'!E4>0,'Balance Sheet'!E17/('Profit & Loss'!E4/365),0) -> 47.46622536 | F22: =IF('Profit & Loss'!F4>0,'Balance Sheet'!F17/('Profit & Loss'!F4/365),0) -> 15.41872136 | G22: =IF('Profit & Loss'!G4>0,'Balance Sheet'!G17/('Profit & Loss'!G4/365),0) -> 26.00145614 | H22: =IF('Profit & Loss'!H4>0,'Balance Sheet'!H17/('Profit & Loss'!H4/365),0) -> 41.84333059 | I22: =IF('Profit & Loss'!I4>0,'Balance Sheet'!I17/('Profit & Loss'!I4/365),0) -> 60.57419672 | J22: =IF('Profit & Loss'!J4>0,'Balance Sheet'!J17/('Profit & Loss'!J4/365),0) -> 55.96709794 | K22: =IF('Profit & Loss'!K4>0,'Balance Sheet'!K17/('Profit & Loss'!K4/365),0) -> 55.53747723
A23: Creditor Days
A24: Cash Conversion Cycle
A26: Return on Equity | B26: =IF(SUM('Balance Sheet'!B4:B5)>0,'Profit & Loss'!B12/SUM('Balance Sheet'!B4:B5),"") -> 0.08847514807 | C26: =IF(SUM('Balance Sheet'!C4:C5)>0,'Profit & Loss'!C12/SUM('Balance Sheet'!C4:C5),"") -> 0.1605021328 | D26: =IF(SUM('Balance Sheet'!D4:D5)>0,'Profit & Loss'!D12/SUM('Balance Sheet'!D4:D5),"") -> 0.1426584887 | E26: =IF(SUM('Balance Sheet'!E4:E5)>0,'Profit & Loss'!E12/SUM('Balance Sheet'!E4:E5),"") -> 0.2342820853 | F26: =IF(SUM('Balance Sheet'!F4:F5)>0,'Profit & Loss'!F12/SUM('Balance Sheet'!F4:F5),"") -> 0.2077139259 | G26: =IF(SUM('Balance Sheet'!G4:G5)>0,'Profit & Loss'!G12/SUM('Balance Sheet'!G4:G5),"") -> 0.171058396 | H26: =IF(SUM('Balance Sheet'!H4:H5)>0,'Profit & Loss'!H12/SUM('Balance Sheet'!H4:H5),"") -> 0.207919074 | I26: =IF(SUM('Balance Sheet'!I4:I5)>0,'Profit & Loss'!I12/SUM('Balance Sheet'!I4:I5),"") -> 0.1646422704 | J26: =IF(SUM('Balance Sheet'!J4:J5)>0,'Profit & Loss'!J12/SUM('Balance Sheet'!J4:J5),"") -> 0.1653047966 | K26: =IF(SUM('Balance Sheet'!K4:K5)>0,'Profit & Loss'!K12/SUM('Balance Sheet'!K4:K5),"") -> 0.2187302168
A27: Return on Capital Emp | B27: =IF(('Balance Sheet'!B10+'Balance Sheet'!B16)>0,('Profit & Loss'!B6-'Profit & Loss'!B8-'Profit & Loss'!B11)/('Balance Sheet'!B10+'Balance Sheet'!B16),"") -> 0.1843366392 | C27: =IF(('Balance Sheet'!C10+'Balance Sheet'!C16)>0,('Profit & Loss'!C6-'Profit & Loss'!C8-'Profit & Loss'!C11)/('Balance Sheet'!C10+'Balance Sheet'!C16),"") -> 0.1371393629 | D27: =IF(('Balance Sheet'!D10+'Balance Sheet'!D16)>0,('Profit & Loss'!D6-'Profit & Loss'!D8-'Profit & Loss'!D11)/('Balance Sheet'!D10+'Balance Sheet'!D16),"") -> 0.1041631478 | E27: =IF(('Balance Sheet'!E10+'Balance Sheet'!E16)>0,('Profit & Loss'!E6-'Profit & Loss'!E8-'Profit & Loss'!E11)/('Balance Sheet'!E10+'Balance Sheet'!E16),"") -> 0.1460953162 | F27: =IF(('Balance Sheet'!F10+'Balance Sheet'!F16)>0,('Profit & Loss'!F6-'Profit & Loss'!F8-'Profit & Loss'!F11)/('Balance Sheet'!F10+'Balance Sheet'!F16),"") -> 0.1393863357 | G27: =IF(('Balance Sheet'!G10+'Balance Sheet'!G16)>0,('Profit & Loss'!G6-'Profit & Loss'!G8-'Profit & Loss'!G11)/('Balance Sheet'!G10+'Balance Sheet'!G16),"") -> 0.1277613997 | H27: =IF(('Balance Sheet'!H10+'Balance Sheet'!H16)>0,('Profit & Loss'!H6-'Profit & Loss'!H8-'Profit & Loss'!H11)/('Balance Sheet'!H10+'Balance Sheet'!H16),"") -> 0.1398873532 | I27: =IF(('Balance Sheet'!I10+'Balance Sheet'!I16)>0,('Profit & Loss'!I6-'Profit & Loss'!I8-'Profit & Loss'!I11)/('Balance Sheet'!I10+'Balance Sheet'!I16),"") -> 0.119223502 | J27: =IF(('Balance Sheet'!J10+'Balance Sheet'!J16)>0,('Profit & Loss'!J6-'Profit & Loss'!J8-'Profit & Loss'!J11)/('Balance Sheet'!J10+'Balance Sheet'!J16),"") -> 0.1478956958 | K27: =IF(('Balance Sheet'!K10+'Balance Sheet'!K16)>0,('Profit & Loss'!K6-'Profit & Loss'!K8-'Profit & Loss'!K11)/('Balance Sheet'!K10+'Balance Sheet'!K16),"") -> 0.1478436847
A31: Common Size Balance Sheet | B31: =B3 -> 2015-03-31 | C31: =C3 -> 2016-03-31 | D31: 2017-03-31 | E31: 2018-03-31 | F31: 2019-03-31 | G31: 2020-03-31 | H31: 2021-03-31 | I31: 2022-03-31 | J31: 2023-03-31 | K31: 2024-03-31 | L31: Check back how Assets are being put to use
A32: Net Block/Total Assets | B32: =B10/B$8 -> 0.1167897 | C32: =C10/C$8 -> 0.3715665636 | D32: 0.5478750686 | E32: 0.5143252632 | F32: 0.4838735682 | G32: 0.3638870335 | H32: 0.193652394 | I32: 0.1688509069 | J32: 0.2050870449 | K32: 0.1389367982
A33: Working Capital/Total Assets | B33: =B16/B$8 -> 0.07718539507 | C33: =C16/C$8 -> 0.08141537656 | D33: 0.05943742502 | E33: 0.1589314335 | F33: 0.252127106 | G33: 0.3071040778 | H33: 0.4700662311 | I33: 0.5310805965 | J33: 0.5659613865 | K33: 0.6707444618
A34: Debtors/Total Assets | B34: =B17/B$8 -> 0.05474610394 | C34: =C17/C$8 -> 0.06778739134 | D34: 0.08103238352 | E34: 0.1031986442 | F34: 0.0354700886 | G34: 0.04985242654 | H34: 0.08306839224 | I34: 0.1135431747 | J34: 0.143458905 | K34: 0.1161275649
A35: Inventory/Total Assets | B35: =B18/B$8 -> 0.02770362638 | C35: =C18/C$8 -> 0.03113888861 | D35: 0.0359202387 | E35: 0.02877706117 | F35: 0.03707870109 | G35: 0.03515502349 | H35: 0.03693120848 | I35: 0.04314910072 | J35: 0.05394506231 | K35: 0.03805616675
A37: Borrowings/Total Assets | B37: =B6/B$8 -> 0.3646956479 | C37: =C6/C$8 -> 0.3703679455 | D37: 0.321623056 | E37: 0.2954010384 | F37: 0.2778282632 | G37: 0.2496303527 | H37: 0.1907501036 | I37: 0.2776941861 | J37: 0.1501746887 | K37: 0.2175182079

Sheet Cash Flow (hidden)
A1: ='Balance Sheet'!A1 -> KNR CONSTRUCTIONS LTD | E1: =UPDATE ->  | J1: SCREENER.IN
A3: Narration | B3: ='Data Sheet'!B81 -> 2015-03-31 | C3: ='Data Sheet'!C81 -> 2016-03-31 | D3: ='Data Sheet'!D81 -> 2017-03-31 | E3: ='Data Sheet'!E81 -> 2018-03-31 | F3: ='Data Sheet'!F81 -> 2019-03-31 | G3: ='Data Sheet'!G81 -> 2020-03-31 | H3: ='Data Sheet'!H81 -> 2021-03-31 | I3: ='Data Sheet'!I81 -> 2022-03-31 | J3: ='Data Sheet'!J81 -> 2023-03-31 | K3: ='Data Sheet'!K81 -> 2024-03-31
A4: Cash from Operating Activity | B4: ='Data Sheet'!B82 -> 78.4 | C4: ='Data Sheet'!C82 -> 245.85 | D4: ='Data Sheet'!D82 -> 365.67 | E4: ='Data Sheet'!E82 -> 220.57 | F4: ='Data Sheet'!F82 -> 255.91 | G4: ='Data Sheet'!G82 -> 230.62 | H4: ='Data Sheet'!H82 -> -75.59 | I4: ='Data Sheet'!I82 -> -336.44 | J4: ='Data Sheet'!J82 -> 1194.13 | K4: ='Data Sheet'!K82 -> -315.64
A5: Cash from Investing Activity | B5: ='Data Sheet'!B83 -> -548.95 | C5: ='Data Sheet'!C83 -> -243.99 | D5: ='Data Sheet'!D83 -> -249.63 | E5: ='Data Sheet'!E83 -> -163.28 | F5: ='Data Sheet'!F83 -> -183.5 | G5: ='Data Sheet'!G83 -> -202.09 | H5: ='Data Sheet'!H83 -> 260.19 | I5: ='Data Sheet'!I83 -> -408.48 | J5: ='Data Sheet'!J83 -> 66.81 | K5: ='Data Sheet'!K83 -> -15.08
A6: Cash from Financing Activity | B6: ='Data Sheet'!B84 -> 449.83 | C6: ='Data Sheet'!C84 -> 1.47 | D6: ='Data Sheet'!D84 -> -123.61 | E6: ='Data Sheet'!E84 -> -37.53 | F6: ='Data Sheet'!F84 -> -107.5 | G6: ='Data Sheet'!G84 -> 2.22 | H6: ='Data Sheet'!H84 -> -97.83 | I6: ='Data Sheet'!I84 -> 764.87 | J6: ='Data Sheet'!J84 -> -1217.35 | K6: ='Data Sheet'!K84 -> 496.13
A7: Net Cash Flow | B7: ='Data Sheet'!B85 -> -20.72 | C7: ='Data Sheet'!C85 -> 3.33 | D7: ='Data Sheet'!D85 -> -7.57 | E7: ='Data Sheet'!E85 -> 19.76 | F7: ='Data Sheet'!F85 -> -35.09 | G7: ='Data Sheet'!G85 -> 30.75 | H7: ='Data Sheet'!H85 -> 86.77 | I7: ='Data Sheet'!I85 -> 19.94 | J7: ='Data Sheet'!J85 -> 43.6 | K7: ='Data Sheet'!K85 -> 165.4

Sheet Customization (hidden)
A1: ='Data Sheet'!B1 -> KNR CONSTRUCTIONS LTD
B4: DELTA NETWORTH | C4: DELTA MKTCAP | D4: IMPACT* | F4: HISTORICAL VALUATIONS | M4: PRE-TAX BOND
A5: 10 YR | B5: =KeyMetrics!K12-KeyMetrics!B12 -> 2765.68 | C5: =KeyMetrics!K27-KeyMetrics!B27 -> 5732.268 | D5: =C5/B5 -> 2.072643256 | G5: P/E | H5: P/B | I5: EV/EBITDA | J5: P/SALES | K5: YIELD | M5: LongTerm Bond | N5: 0.09
A6: 7 YR | B6: =KeyMetrics!K12-KeyMetrics!E12 -> 2514.89 | C6: =KeyMetrics!K27-KeyMetrics!E27 -> 2932.916 | D6: =C6/B6 -> 1.166220391 | F6: MIN | G6: =MIN(KeyMetrics!B34:K34) -> 8.909127862 | H6: =MIN(KeyMetrics!B35:K35) -> 1.513929509 | I6: =MIN(KeyMetrics!B38:K38) -> 5.156024254 | J6: =MIN(KeyMetrics!B37:K37) -> 1.126896659 | K6: =MAX(KeyMetrics!B39:K39) -> 0.003926187672 | M6: LTB Quote | N6: =('Profit & Loss'!$L$10/'Data Sheet'!$B$61)/N5 -> 5.499410379
A7: 5 YR | B7: =KeyMetrics!K12-KeyMetrics!G12 -> 2001.99 | C7: =KeyMetrics!K27-KeyMetrics!G27 -> 4163.166 | D7: =C7/B7 -> 2.079513884 | F7: MAX | G7: =MAX(KeyMetrics!B34:K34) -> 23.5875161 | H7: =MAX(KeyMetrics!B35:K35) -> 3.842195408 | I7: =MAX(KeyMetrics!B38:K38) -> 13.41340074 | J7: =MAX(KeyMetrics!B37:K37) -> 2.215944778 | K7: =MIN(KeyMetrics!B39:K39) -> 0.0008798169981 | M7: Equity Quoting @ | N7: =('Profit & Loss'!$L$6/'Data Sheet'!$B$6)/'Data Sheet'!$B$8 -> 0.1156733168
A8: 3 YR | B8: =KeyMetrics!K12-KeyMetrics!I12 -> 1234.94 | C8: =KeyMetrics!K27-KeyMetrics!I27 -> -1064.342 | D8: =C8/B8 -> -0.8618572562 | F8: TRAILING | G8: ='Data Sheet'!B8/'Profit & Loss'!L13 -> 11.8116673 | H8: =KeyMetrics!L27/KeyMetrics!K12 -> 2.701447604 | I8: =KeyMetrics!K38 -> 6.522337392 | J8: =KeyMetrics!L27/'Data Sheet'!K17 -> 2.167597173 | K8: ='Data Sheet'!K31/KeyMetrics!L27 -> 0.0007321887026
A9: 1 YR | B9: =KeyMetrics!K12-KeyMetrics!J12 -> 783.45 | C9: =KeyMetrics!K27-KeyMetrics!J27 -> -208.088 | D9: =C9/B9 -> -0.2656046972
A10: * IMPACT – Every Rupee retained added xx.yy in incremental market value
A12: =A1 -> KNR CONSTRUCTIONS LTD | B12: SALES | C12: GROSS PROFIT | D12: EBIT | E12: PAT | F12: DIVIDEND | G12: EPA** | H12: MKTCAP | I12: CFO** | J12: FCF** | K12: NETWORTH | L12: TOTAL RETURNS
A13: 10 YR CAGR | B13: =POWER('Data Sheet'!$K17/'Data Sheet'!$B17, 1/9)-1 -> 0.1930699521 | C13: =POWER(KeyMetrics!$K4/KeyMetrics!$B4, 1/9)-1 -> 0.1907878518 | D13: =POWER(KeyMetrics!$K6/KeyMetrics!$B6, 1/9)-1 -> 0.3197415373 | E13: =POWER(KeyMetrics!$K9/KeyMetrics!$B9, 1/9)-1 -> 0.3071865261 | F13: =POWER(KeyMetrics!$K10/KeyMetrics!$B10, 1/9)-1 -> 0.1072607094 | G13: =POWER(KeyMetrics!$K25/KeyMetrics!$B25, 1/9)-1 -> -2.116000685 | H13: =POWER(KeyMetrics!$K27/KeyMetrics!$B27, 1/9)-1 -> 0.2157470128 | I13: =POWER(KeyMetrics!$K18/KeyMetrics!$B18, 1/9)-1 -> -2.167369766 | J13: =POWER(KeyMetrics!$K20/KeyMetrics!$C20, 1/8)-1 ->  | K13: =POWER(KeyMetrics!$K12/KeyMetrics!$B12, 1/9)-1 -> 0.1821189394 | L13: =POWER(KeyMetrics!$K28/KeyMetrics!$B28, 1/9)-1 -> 0.2155664506
A14: 5 YR CAGR | B14: =POWER('Data Sheet'!$K17/'Data Sheet'!$G17, 1/4)-1 -> 0.1593711399 | C14: =POWER(KeyMetrics!$K4/KeyMetrics!$G4, 1/4)-1 -> 0.1255869125 | D14: =POWER(KeyMetrics!$K6/KeyMetrics!$G6, 1/4)-1 -> 0.2419793182 | E14: =POWER(KeyMetrics!$K9/KeyMetrics!$G9, 1/4)-1 -> 0.3080999028 | F14: =POWER(KeyMetrics!$K10/KeyMetrics!$G10, 1/4)-1 -> 0 | G14: =POWER(KeyMetrics!$K25/KeyMetrics!$G25, 1/4)-1 -> 0.4328445046 | H14: =POWER(KeyMetrics!$K27/KeyMetrics!$G27, 1/4)-1 -> 0.2582964264 | I14: =POWER(KeyMetrics!$K18/KeyMetrics!$G18, 1/4)-1 ->  | J14: =POWER(KeyMetrics!$K20/KeyMetrics!$G20, 1/4)-1 ->  | K14: =POWER(KeyMetrics!$K12/KeyMetrics!$G12, 1/4)-1 -> 0.230126619 | L14: =POWER(KeyMetrics!$K28/KeyMetrics!$G28, 1/4)-1 -> 0.2578162295
A15: 3 YR CAGR | B15: =POWER('Data Sheet'!$K17/'Data Sheet'!$I17, 1/2)-1 -> 0.1083446803 | C15: =POWER(KeyMetrics!$K4/KeyMetrics!$I4, 1/2)-1 -> 0.06026209256 | D15: =POWER(KeyMetrics!$K6/KeyMetrics!$I6, 1/2)-1 -> 0.2039014095 | E15: =POWER(KeyMetrics!$K9/KeyMetrics!$I9, 1/2)-1 -> 0.4268606379 | F15: =POWER(KeyMetrics!$K10/KeyMetrics!$I10, 1/2)-1 -> 0 | G15: =POWER(KeyMetrics!$K25/KeyMetrics!$I25, 1/2)-1 -> 2.597803924 | H15: =POWER(KeyMetrics!$K27/KeyMetrics!$I27, 1/2)-1 -> -0.06898136082 | I15: =POWER(KeyMetrics!$K18/KeyMetrics!$I18, 1/2)-1 -> -0.03140503933 | J15: =POWER(KeyMetrics!$K20/KeyMetrics!$I20, 1/2)-1 -> -0.2173850322 | K15: =POWER(KeyMetrics!$K12/KeyMetrics!$I12, 1/2)-1 -> 0.2379349917 | L15: =POWER(KeyMetrics!$K28/KeyMetrics!$I28, 1/2)-1 -> -0.06891847893
A16: 1 YR GROWTH | B16: =('Data Sheet'!$K17-'Data Sheet'!$J17)/'Data Sheet'!$J17 -> 0.09037357595 | C16: =(KeyMetrics!$K4-KeyMetrics!$J4)/KeyMetrics!$J4 -> 0.06175758095 | D16: =(KeyMetrics!$K6-KeyMetrics!$J6)/KeyMetrics!$J6 -> 0.2407715809 | E16: =(KeyMetrics!$K9-KeyMetrics!$J9)/KeyMetrics!$J9 -> 0.6973428528 | F16: =(KeyMetrics!$K10-KeyMetrics!$J10)/KeyMetrics!$J10 -> 0 | G16: =(KeyMetrics!$K25-KeyMetrics!$J25)/KeyMetrics!$J25 -> 0.8559969867 | H16: =(KeyMetrics!$K27-KeyMetrics!$J27)/KeyMetrics!$J27 -> -0.02916830903 | I16: =(KeyMetrics!$K18-KeyMetrics!$J18)/KeyMetrics!$J18 -> -1.26432633 | J16: =(KeyMetrics!$K20-KeyMetrics!$J20)/KeyMetrics!$J20 -> -1.376361608 | K16: =(KeyMetrics!$K12-KeyMetrics!$J12)/KeyMetrics!$J12 -> 0.2827624788 | L16: =(KeyMetrics!$K28-KeyMetrics!$J28)/KeyMetrics!$J28 -> -0.02913959441
A17: **modify (if, then) for negative values
A18: =A1 -> KNR CONSTRUCTIONS LTD | B18: ='Data Sheet'!B16 -> 2015-03-31 | C18: ='Data Sheet'!C16 -> 2016-03-31 | D18: ='Data Sheet'!D16 -> 2017-03-31 | E18: ='Data Sheet'!E16 -> 2018-03-31 | F18: ='Data Sheet'!F16 -> 2019-03-31 | G18: ='Data Sheet'!G16 -> 2020-03-31 | H18: ='Data Sheet'!H16 -> 2021-03-31 | I18: ='Data Sheet'!I16 -> 2022-03-31 | J18: ='Data Sheet'!J16 -> 2023-03-31 | K18: ='Data Sheet'!K16 -> 2024-03-31
A19: Total Assets/Networth= Financial Leverage | B19: =KeyMetrics!B16/KeyMetrics!B12 -> 2.551333595 | C19: =KeyMetrics!C16/KeyMetrics!C12 -> 2.842203201 | D19: =KeyMetrics!D16/KeyMetrics!D12 -> 2.783876735 | E19: =KeyMetrics!E16/KeyMetrics!E12 -> 2.509458653 | F19: =KeyMetrics!F16/KeyMetrics!F12 -> 2.095537195 | G19: =KeyMetrics!G16/KeyMetrics!G12 -> 2.257074013 | H19: =KeyMetrics!H16/KeyMetrics!H12 -> 2.045189147 | I19: =KeyMetrics!I16/KeyMetrics!I12 -> 2.27246778 | J19: =KeyMetrics!J16/KeyMetrics!J12 -> 1.567116613 | K19: =KeyMetrics!K16/KeyMetrics!K12 -> 1.632961468
A20: Long term debt/Earning | B20: ='Data Sheet'!B59/'Data Sheet'!B30 -> 10.51662844 | C20: ='Data Sheet'!C59/'Data Sheet'!C30 -> 6.558548114 | D20: ='Data Sheet'!D59/'Data Sheet'!D30 -> 6.276240209 | E20: ='Data Sheet'!E59/'Data Sheet'!E30 -> 3.164120256 | F20: ='Data Sheet'!F59/'Data Sheet'!F30 -> 2.802890836 | G20: ='Data Sheet'!G59/'Data Sheet'!G30 -> 3.293811909 | H20: ='Data Sheet'!H59/'Data Sheet'!H30 -> 1.876307133 | I20: ='Data Sheet'!I59/'Data Sheet'!I30 -> 3.832861932 | J20: ='Data Sheet'!J59/'Data Sheet'!J30 -> 1.423680706 | K20: ='Data Sheet'!K59/'Data Sheet'!K30 -> 1.623913043
A21: Current liablility/Earning | B21: ='Data Sheet'!B60/'Data Sheet'!B30 -> 7.017488532 | C21: ='Data Sheet'!C60/'Data Sheet'!C30 -> 4.919200927 | D21: ='Data Sheet'!D60/'Data Sheet'!D30 -> 6.228285466 | E21: ='Data Sheet'!E60/'Data Sheet'!E30 -> 3.278790866 | F21: ='Data Sheet'!F60/'Data Sheet'!F30 -> 2.471368896 | G21: ='Data Sheet'!G60/'Data Sheet'!G30 -> 4.054988513 | H21: ='Data Sheet'!H60/'Data Sheet'!H30 -> 3.150596495 | I21: ='Data Sheet'!I60/'Data Sheet'!I30 -> 3.895820239 | J21: ='Data Sheet'!J60/'Data Sheet'!J30 -> 2.007052248 | K21: ='Data Sheet'!K60/'Data Sheet'!K30 -> 1.269886802
A22: Total liability/Earning | B22: =('Data Sheet'!B59+'Data Sheet'!B60)/'Data Sheet'!B30 -> 17.53411697 | C22: =('Data Sheet'!C59+'Data Sheet'!C60)/'Data Sheet'!C30 -> 11.47774904 | D22: =('Data Sheet'!D59+'Data Sheet'!D60)/'Data Sheet'!D30 -> 12.50452567 | E22: =('Data Sheet'!E59+'Data Sheet'!E60)/'Data Sheet'!E30 -> 6.442911122 | F22: =('Data Sheet'!F59+'Data Sheet'!F60)/'Data Sheet'!F30 -> 5.274259732 | G22: =('Data Sheet'!G59+'Data Sheet'!G60)/'Data Sheet'!G30 -> 7.348800422 | H22: =('Data Sheet'!H59+'Data Sheet'!H60)/'Data Sheet'!H30 -> 5.026903628 | I22: =('Data Sheet'!I59+'Data Sheet'!I60)/'Data Sheet'!I30 -> 7.728682171 | J22: =('Data Sheet'!J59+'Data Sheet'!J60)/'Data Sheet'!J30 -> 3.430732953 | K22: =('Data Sheet'!K59+'Data Sheet'!K60)/'Data Sheet'!K30 -> 2.893799846
A23: Debt/Equity | B23: ='Data Sheet'!B59/KeyMetrics!B12 -> 0.9304602585 | C23: ='Data Sheet'!C59/KeyMetrics!C12 -> 1.05266096 | D23: ='Data Sheet'!D59/KeyMetrics!D12 -> 0.8953589432 | E23: ='Data Sheet'!E59/KeyMetrics!E12 -> 0.7412966919 | F23: ='Data Sheet'!F59/KeyMetrics!F12 -> 0.5821994594 | G23: ='Data Sheet'!G59/KeyMetrics!G12 -> 0.563434182 | H23: ='Data Sheet'!H59/KeyMetrics!H12 -> 0.3901200416 | I23: ='Data Sheet'!I59/KeyMetrics!I12 -> 0.6310510907 | J23: ='Data Sheet'!J59/KeyMetrics!J12 -> 0.2353412495 | K23: ='Data Sheet'!K59/KeyMetrics!K12 -> 0.355198852
A24: Interest Coverage | B24: =KeyMetrics!B6/'Data Sheet'!B27 -> 6.178985507 | C24: =KeyMetrics!C6/'Data Sheet'!C27 -> 2.582631579 | D24: =KeyMetrics!D6/'Data Sheet'!D27 -> 2.45493326 | E24: =KeyMetrics!E6/'Data Sheet'!E27 -> 3.766424242 | F24: =KeyMetrics!F6/'Data Sheet'!F27 -> 4.254229742 | G24: =KeyMetrics!G6/'Data Sheet'!G27 -> 3.928958296 | H24: =KeyMetrics!H6/'Data Sheet'!H27 -> 4.902034382 | I24: =KeyMetrics!I6/'Data Sheet'!I27 -> 4.727537383 | J24: =KeyMetrics!J6/'Data Sheet'!J27 -> 5.441003911 | K24: =KeyMetrics!K6/'Data Sheet'!K27 -> 9.800416391
A25: Working Capital/Sales | B25: =KeyMetrics!B13/'Data Sheet'!B17 -> 0.1716828837 | C25: =KeyMetrics!C13/'Data Sheet'!C17 -> 0.1356572234 | D25: =KeyMetrics!D13/'Data Sheet'!D17 -> 0.08115679027 | E25: =KeyMetrics!E13/'Data Sheet'!E17 -> 0.2002754155 | F25: =KeyMetrics!F13/'Data Sheet'!F17 -> 0.3002705651 | G25: =KeyMetrics!G13/'Data Sheet'!G17 -> 0.4388378581 | H25: =KeyMetrics!H13/'Data Sheet'!H17 -> 0.6487190172 | I25: =KeyMetrics!I13/'Data Sheet'!I17 -> 0.7762367506 | J25: =KeyMetrics!J13/'Data Sheet'!J17 -> 0.6049217696 | K25: =KeyMetrics!K13/'Data Sheet'!K17 -> 0.8788506126 | L25: Check for improving or deteriorating picture
A26: Inventory Turns | B26: =365/B27 -> 16.22824332 | C26: 19.27349183 | D26: 20.38899926 | E26: 27.57628248 | F26: 22.64551833 | G26: 19.90646314 | H26: 19.62044733 | I26: 15.85603096 | J26: 17.34346582 | K26: 20.05473808
A27: Inventory Days | B27: ='Balance Sheet'!B21 -> 22.49165192 | C27: ='Balance Sheet'!C21 -> 18.93792797 | D27: ='Balance Sheet'!D21 -> 17.90181045 | E27: ='Balance Sheet'!E21 -> 13.23601179 | F27: ='Balance Sheet'!F21 -> 16.11797949 | G27: ='Balance Sheet'!G21 -> 18.33575344 | H27: ='Balance Sheet'!H21 -> 18.60304171 | I27: ='Balance Sheet'!I21 -> 23.01963215 | J27: ='Balance Sheet'!J21 -> 21.04538987 | K27: ='Balance Sheet'!K21 -> 18.20018783
A28: Debtor Days | B28: ='Balance Sheet'!B22 -> 44.44653914 | C28: ='Balance Sheet'!C22 -> 41.22667159 | D28: ='Balance Sheet'!D22 -> 40.38465286 | E28: ='Balance Sheet'!E22 -> 47.46622536 | F28: ='Balance Sheet'!F22 -> 15.41872136 | G28: ='Balance Sheet'!G22 -> 26.00145614 | H28: ='Balance Sheet'!H22 -> 41.84333059 | I28: ='Balance Sheet'!I22 -> 60.57419672 | J28: ='Balance Sheet'!J22 -> 55.96709794 | K28: ='Balance Sheet'!K22 -> 55.53747723
A29: Creditor Days | L29: Check back to see if Creditor policy change is impacting Working Cap cycle
A30: Cash Conversion Cycle
A31: Cash In/Cash Out Ratio | B31: =('Data Sheet'!B67+'Data Sheet'!B69)/'Data Sheet'!B60 -> 0.3139273604 | C31: =('Data Sheet'!C67+'Data Sheet'!C69)/'Data Sheet'!C60 -> 0.3259848801 | D31: =('Data Sheet'!D67+'Data Sheet'!D69)/'Data Sheet'!D60 -> 0.3011332672 | E31: =('Data Sheet'!E67+'Data Sheet'!E69)/'Data Sheet'!E60 -> 0.4022447139 | F31: =('Data Sheet'!F67+'Data Sheet'!F69)/'Data Sheet'!F60 -> 0.1858854502 | G31: =('Data Sheet'!G67+'Data Sheet'!G69)/'Data Sheet'!G60 -> 0.2391885867 | H31: =('Data Sheet'!H67+'Data Sheet'!H69)/'Data Sheet'!H60 -> 0.3745334985 | I31: =('Data Sheet'!I67+'Data Sheet'!I69)/'Data Sheet'!I60 -> 0.576513532 | J31: =('Data Sheet'!J67+'Data Sheet'!J69)/'Data Sheet'!J60 -> 0.9171607289 | K31: =('Data Sheet'!K67+'Data Sheet'!K69)/'Data Sheet'!K60 -> 1.098925254
A32: Current Ratio | B32: ='Data Sheet'!B65/'Data Sheet'!B60 -> 1.317175307 | C32: ='Data Sheet'!C65/'Data Sheet'!C60 -> 1.293080005 | D32: ='Data Sheet'!D65/'Data Sheet'!D60 -> 1.18622752 | E32: ='Data Sheet'!E65/'Data Sheet'!E60 -> 1.519202826 | F32: ='Data Sheet'!F65/'Data Sheet'!F60 -> 2.029228307 | G32: ='Data Sheet'!G65/'Data Sheet'!G60 -> 1.999303388 | H32: ='Data Sheet'!H65/'Data Sheet'!H60 -> 2.467592268 | I32: ='Data Sheet'!I65/'Data Sheet'!I60 -> 2.881559311 | J32: ='Data Sheet'!J65/'Data Sheet'!J60 -> 3.673277128 | K32: ='Data Sheet'!K65/'Data Sheet'!K60 -> 4.94329474
A33: CFO/PAT | B33: =KeyMetrics!B18/KeyMetrics!B9 -> 1.123853211 | C33: =KeyMetrics!C18/KeyMetrics!C9 -> 2.192544368 | D33: =KeyMetrics!D18/KeyMetrics!D9 -> 3.182506527 | E33: =KeyMetrics!E18/KeyMetrics!E9 -> 0.9059060292 | F33: =KeyMetrics!F18/KeyMetrics!F9 -> 0.9460278733 | G33: =KeyMetrics!G18/KeyMetrics!G9 -> 0.8685925201 | H33: =KeyMetrics!H18/KeyMetrics!H9 -> -0.1855515735 | I33: =KeyMetrics!I18/KeyMetrics!I9 -> -0.8811020323 | J33: =KeyMetrics!J18/KeyMetrics!J9 -> 2.607213816 | K33: =KeyMetrics!K18/KeyMetrics!K9 -> -0.4060200669
A35: Gross Margin =Gross Profit/Sales | B35: =KeyMetrics!B4/'Data Sheet'!B17 -> 0.6261609907 | C35: =KeyMetrics!C4/'Data Sheet'!C17 -> 0.7332673201 | D35: =KeyMetrics!D4/'Data Sheet'!D17 -> 0.7796459476 | E35: =KeyMetrics!E4/'Data Sheet'!E17 -> 0.7550927716 | F35: =KeyMetrics!F4/'Data Sheet'!F17 -> 0.719057386 | G35: =KeyMetrics!G4/'Data Sheet'!G17 -> 0.6927494616 | H35: =KeyMetrics!H4/'Data Sheet'!H17 -> 0.6809338655 | I35: =KeyMetrics!I4/'Data Sheet'!I17 -> 0.6725515971 | J35: =KeyMetrics!J4/'Data Sheet'!J17 -> 0.6320513199 | K35: =KeyMetrics!K4/'Data Sheet'!K17 -> 0.6154636313
A36: EBIT/Sales | B36: =KeyMetrics!B6/'Data Sheet'!B17 -> 0.09428350287 | C36: =KeyMetrics!C6/'Data Sheet'!C17 -> 0.123531485 | D36: =KeyMetrics!D6/'Data Sheet'!D17 -> 0.1086393891 | E36: =KeyMetrics!E6/'Data Sheet'!E17 -> 0.1501401237 | F36: =KeyMetrics!F6/'Data Sheet'!F17 -> 0.166790312 | G36: =KeyMetrics!G6/'Data Sheet'!G17 -> 0.1775313255 | H36: =KeyMetrics!H6/'Data Sheet'!H17 -> 0.2248909124 | I36: =KeyMetrics!I6/'Data Sheet'!I17 -> 0.1981574233 | J36: =KeyMetrics!J6/'Data Sheet'!J17 -> 0.2054593881 | K36: =KeyMetrics!K6/'Data Sheet'!K17 -> 0.2337989249
A37: EBITDA/Sales | B37: =KeyMetrics!B7/'Data Sheet'!B17 -> 0.155285272 | C37: =KeyMetrics!C7/'Data Sheet'!C17 -> 0.1829937567 | D37: =KeyMetrics!D7/'Data Sheet'!D17 -> 0.1790540335 | E37: =KeyMetrics!E7/'Data Sheet'!E17 -> 0.24368477 | F37: =KeyMetrics!F7/'Data Sheet'!F17 -> 0.2672179795 | G37: =KeyMetrics!G7/'Data Sheet'!G17 -> 0.281186778 | H37: =KeyMetrics!H7/'Data Sheet'!H17 -> 0.2902918072 | I37: =KeyMetrics!I7/'Data Sheet'!I17 -> 0.2438945926 | J37: =KeyMetrics!J7/'Data Sheet'!J17 -> 0.249940921 | K37: =KeyMetrics!K7/'Data Sheet'!K17 -> 0.2692048069
A38: Op Profit (Ex Other Income)/Sales | B38: =KeyMetrics!B8/'Data Sheet'!B17 -> 0.1402255639 | C38: =KeyMetrics!C8/'Data Sheet'!C17 -> 0.1446025779 | D38: =KeyMetrics!D8/'Data Sheet'!D17 -> 0.1610469329 | E38: =KeyMetrics!E8/'Data Sheet'!E17 -> 0.2171385775 | F38: =KeyMetrics!F8/'Data Sheet'!F17 -> 0.2345930613 | G38: =KeyMetrics!G8/'Data Sheet'!G17 -> 0.2541073876 | H38: =KeyMetrics!H8/'Data Sheet'!H17 -> 0.2407021556 | I38: =KeyMetrics!I8/'Data Sheet'!I17 -> 0.2223377762 | J38: =KeyMetrics!J8/'Data Sheet'!J17 -> 0.2258982463 | K38: =KeyMetrics!K8/'Data Sheet'!K17 -> 0.2365396468
A39: Net Margin =PAT/Sales | B39: =KeyMetrics!B9/'Data Sheet'!B17 -> 0.0771340115 | C39: =KeyMetrics!C9/'Data Sheet'!C17 -> 0.09409405209 | D39: =KeyMetrics!D9/'Data Sheet'!D17 -> 0.06997009981 | E39: =KeyMetrics!E9/'Data Sheet'!E17 -> 0.1176459219 | F39: =KeyMetrics!F9/'Data Sheet'!F17 -> 0.1180493127 | G39: =KeyMetrics!G9/'Data Sheet'!G17 -> 0.1082971677 | H39: =KeyMetrics!H9/'Data Sheet'!H17 -> 0.1403002449 | I39: =KeyMetrics!I9/'Data Sheet'!I17 -> 0.105895469 | J39: =KeyMetrics!J9/'Data Sheet'!J17 -> 0.1127448084 | K39: =KeyMetrics!K9/'Data Sheet'!K17 -> 0.1755055322
A40: Op Cash Flow/Sales | B40: =KeyMetrics!B18/'Data Sheet'!B17 -> 0.0866873065 | C40: =KeyMetrics!C18/'Data Sheet'!C17 -> 0.206305384 | D40: =KeyMetrics!D18/'Data Sheet'!D17 -> 0.2226802994 | E40: =KeyMetrics!E18/'Data Sheet'!E17 -> 0.10657615 | F40: =KeyMetrics!F18/'Data Sheet'!F17 -> 0.1116779402 | G40: =KeyMetrics!G18/'Data Sheet'!G17 -> 0.09406610977 | H40: =KeyMetrics!H18/'Data Sheet'!H17 -> -0.02603293119 | I40: =KeyMetrics!I18/'Data Sheet'!I17 -> -0.09330471294 | J40: =KeyMetrics!J18/'Data Sheet'!J17 -> 0.2939498223 | K40: =KeyMetrics!K18/'Data Sheet'!K17 -> -0.07125876794
A41: Free Cash Flow/Sales | B41: =KeyMetrics!B20/'Data Sheet'!B17 -> 0 | C41: =KeyMetrics!C20/'Data Sheet'!C17 -> 0.2951211735 | D41: =KeyMetrics!D20/'Data Sheet'!D17 -> 0.05897218856 | E41: =KeyMetrics!E20/'Data Sheet'!E17 -> 0.002014882103 | F41: =KeyMetrics!F20/'Data Sheet'!F17 -> 0.02083787912 | G41: =KeyMetrics!G20/'Data Sheet'!G17 -> 0.004914997063 | H41: =KeyMetrics!H20/'Data Sheet'!H17 -> 0.08303399538 | I41: =KeyMetrics!I20/'Data Sheet'!I17 -> -0.175688193 | J41: =KeyMetrics!J20/'Data Sheet'!J17 -> 0.2537810534 | K41: =KeyMetrics!K20/'Data Sheet'!K17 -> -0.08759699198
A42: EPA/Sales | B42: =KeyMetrics!B25/'Data Sheet'!B17 -> -0.1041710917 | C42: =KeyMetrics!C25/'Data Sheet'!C17 -> 0.01976385726 | D42: =KeyMetrics!D25/'Data Sheet'!D17 -> -0.004719933309 | E42: =KeyMetrics!E25/'Data Sheet'!E17 -> 0.04874617247 | F42: =KeyMetrics!F25/'Data Sheet'!F17 -> 0.04593352753 | G42: =KeyMetrics!G25/'Data Sheet'!G17 -> 0.02448092859 | H42: =KeyMetrics!H25/'Data Sheet'!H17 -> 0.05561933185 | I42: =KeyMetrics!I25/'Data Sheet'!I17 -> 0.00542011992 | J42: =KeyMetrics!J25/'Data Sheet'!J17 -> 0.03355306876 | K42: =KeyMetrics!K25/'Data Sheet'!K17 -> 0.05711289771
A44: Sales/Invested Capital =Capital Turns | B44: ='Data Sheet'!B17/KeyMetrics!B14 -> 0.6035489533 | C44: ='Data Sheet'!C17/KeyMetrics!C14 -> 0.8972412962 | D44: ='Data Sheet'!D17/KeyMetrics!D14 -> 1.13018851 | E44: ='Data Sheet'!E17/KeyMetrics!E14 -> 1.177923608 | F44: ='Data Sheet'!F17/KeyMetrics!F14 -> 1.140844369 | G44: ='Data Sheet'!G17/KeyMetrics!G14 -> 1.038469032 | H44: ='Data Sheet'!H17/KeyMetrics!H14 -> 1.090761903 | I44: ='Data Sheet'!I17/KeyMetrics!I14 -> 0.972052762 | J44: ='Data Sheet'!J17/KeyMetrics!J14 -> 1.212496381 | K44: ='Data Sheet'!K17/KeyMetrics!K14 -> 0.9421640362
A45: Sales/Fixed Assets= Fixed Asset Turns | B45: ='Data Sheet'!B17/'Data Sheet'!B62 -> 3.849493488 | C45: ='Data Sheet'!C17/'Data Sheet'!C62 -> 1.615202158 | D45: ='Data Sheet'!D17/'Data Sheet'!D62 -> 1.336760444 | E45: ='Data Sheet'!E17/'Data Sheet'!E62 -> 1.542923174 | F45: ='Data Sheet'!F17/'Data Sheet'!F62 -> 1.735301245 | G45: ='Data Sheet'!G17/'Data Sheet'!G62 -> 1.923157779 | H45: ='Data Sheet'!H17/'Data Sheet'!H62 -> 3.741791237 | I45: ='Data Sheet'!I17/'Data Sheet'!I62 -> 4.05193842 | J45: ='Data Sheet'!J17/'Data Sheet'!J62 -> 4.56193781 | K45: ='Data Sheet'!K17/'Data Sheet'!K62 -> 5.493191627
A46: Sales/Total Assets= Asset Turns | B46: ='Data Sheet'!B17/KeyMetrics!B16 -> 0.4495811896 | C46: ='Data Sheet'!C17/KeyMetrics!C16 -> 0.6001551153 | D46: ='Data Sheet'!D17/KeyMetrics!D16 -> 0.73237772 | E46: ='Data Sheet'!E17/KeyMetrics!E16 -> 0.7935643678 | F46: ='Data Sheet'!F17/KeyMetrics!F16 -> 0.8396664053 | G46: ='Data Sheet'!G17/KeyMetrics!G16 -> 0.6998121792 | H46: ='Data Sheet'!H17/KeyMetrics!H16 -> 0.7246068307 | I46: ='Data Sheet'!I17/KeyMetrics!I16 -> 0.6841734768 | J46: ='Data Sheet'!J17/KeyMetrics!J16 -> 0.9355943446 | K46: ='Data Sheet'!K17/KeyMetrics!K16 -> 0.7632064565
A47: Net Margin*Asset Turns= RoA | B47: =B39*B46 -> 0.03467800065 | C47: =C39*C46 -> 0.05647102668 | D47: 0.05124454217 | E47: 0.09335961165 | F47: 0.09912204202 | G47: 0.0757876769 | H47: 0.1016625158 | I47: 0.0724508712 | J47: 0.1054834052 | K47: 0.1339469554 | L47: Check back what is really driving RoA (Net Margins or Asset Turns, or both)
A48: Net Margin*Asset Turn*Fin Leverage= RoE | B48: =B39*B46*B19 -> 0.08847514807 | C48: 0.1605021328 | D48: 0.1426584887 | E48: 0.2342820853 | F48: 0.2077139259 | G48: 0.171058396 | H48: 0.207919074 | I48: 0.1646422704 | J48: 0.1653047966 | K48: 0.2187302168 | L48: Check back what is really driving RoE (Net Margins, Asset Turns, or Financial Leverage)
A49: RoCE | B49: =KeyMetrics!B6/KeyMetrics!B15 -> 0.05602091833 | C49: =KeyMetrics!C6/KeyMetrics!C15 -> 0.1026547562 | D49: =KeyMetrics!D6/KeyMetrics!D15 -> 0.1168640604 | E49: =KeyMetrics!E6/KeyMetrics!E15 -> 0.1717062874 | F49: =KeyMetrics!F6/KeyMetrics!F15 -> 0.1854862584 | G49: =KeyMetrics!G6/KeyMetrics!G15 -> 0.1793588 | H49: =KeyMetrics!H6/KeyMetrics!H15 -> 0.2397482827 | I49: =KeyMetrics!I6/KeyMetrics!I15 -> 0.1888890358 | J49: =KeyMetrics!J6/KeyMetrics!J15 -> 0.243852914 | K49: =KeyMetrics!K6/KeyMetrics!K15 -> 0.215009405
A50: EBIT Margin*Cap Turns*(1-Tax rate)= RoIC | B50: =B36*B44*(1-KeyMetrics!B21) -> 0.05712764663 | C50: =C36*C44*(1-KeyMetrics!C21) -> 0.1377329489 | D50: =D36*D44*(1-KeyMetrics!D21) -> 0.1146655856 | E50: =E36*E44*(1-KeyMetrics!E21) -> 0.1774192674 | F50: =F36*F44*(1-KeyMetrics!F21) -> 0.1724030062 | G50: =G36*G44*(1-KeyMetrics!G21) -> 0.1454226862 | H50: =H36*H44*(1-KeyMetrics!H21) -> 0.1806674482 | I50: =I36*I44*(1-KeyMetrics!I21) -> 0.1252686425 | J50: =J36*J44*(1-KeyMetrics!J21) -> 0.1606829744 | K50: =K36*K44*(1-KeyMetrics!K21) -> 0.1738097182 | L50: Check back what is really driving RoIC (Op Margins or Capital Turns, or both)
A52: Altman Z-Score | B52: =KeyMetrics!B46 -> 1.084710462 | C52: =KeyMetrics!C46 -> 1.450140208 | D52: =KeyMetrics!D46 -> 1.858859133 | E52: =KeyMetrics!E46 -> 2.423801179 | F52: =KeyMetrics!F46 -> 2.548175181 | G52: =KeyMetrics!G46 -> 2.054787431 | H52: =KeyMetrics!H46 -> 2.864825838 | I52: =KeyMetrics!I46 -> 2.778082739 | J52: =KeyMetrics!J46 -> 3.3803228 | K52: =KeyMetrics!K46 -> 3.058781693
A53: Dividend Payout | B53: ='Data Sheet'!B31/'Data Sheet'!B30 -> 0.0402809633 | C53: ='Data Sheet'!C31/'Data Sheet'!C30 -> 0.05012039597 | D53: ='Data Sheet'!D31/'Data Sheet'!D30 -> 0.06118363795 | E53: ='Data Sheet'!E31/'Data Sheet'!E30 -> 0.02308197799 | F53: ='Data Sheet'!F31/'Data Sheet'!F30 -> 0.02077557207 | G53: ='Data Sheet'!G31/'Data Sheet'!G30 -> 0.02647734549 | H53: ='Data Sheet'!H31/'Data Sheet'!H30 -> 0.01725661545 | I53: ='Data Sheet'!I31/'Data Sheet'!I30 -> 0.01841085271 | J53: ='Data Sheet'!J31/'Data Sheet'!J30 -> 0.01534900985 | K53: ='Data Sheet'!K31/'Data Sheet'!K30 -> 0.009042963725
A54: Cash/Assets | B54: ='Data Sheet'!B69/'Data Sheet'!B61 -> 0.02164889519 | C54: ='Data Sheet'!C69/'Data Sheet'!C61 -> 0.022768707 | D54: ='Data Sheet'!D69/'Data Sheet'!D61 -> 0.01507900758 | E54: ='Data Sheet'!E69/'Data Sheet'!E61 -> 0.01993113444 | F54: ='Data Sheet'!F69/'Data Sheet'!F61 -> 0.01006573692 | G54: ='Data Sheet'!G69/'Data Sheet'!G61 -> 0.02365456964 | H54: ='Data Sheet'!H69/'Data Sheet'!H61 -> 0.03689377567 | I54: ='Data Sheet'!I69/'Data Sheet'!I61 -> 0.04918098108 | J54: ='Data Sheet'!J69/'Data Sheet'!J61 -> 0.0507138399 | K54: ='Data Sheet'!K69/'Data Sheet'!K61 -> 0.07079684137
A55: EBIT/Invested Capital | B55: =KeyMetrics!B6/KeyMetrics!B14 -> 0.05690470947 | C55: =KeyMetrics!C6/KeyMetrics!C14 -> 0.1108375497 | D55: =KeyMetrics!D6/KeyMetrics!D14 -> 0.1227829893 | E55: =KeyMetrics!E6/KeyMetrics!E14 -> 0.1768535962 | F55: =KeyMetrics!F6/KeyMetrics!F14 -> 0.1902817883 | G55: =KeyMetrics!G6/KeyMetrics!G14 -> 0.1843607838 | H55: =KeyMetrics!H6/KeyMetrics!H14 -> 0.2453024395 | I55: =KeyMetrics!I6/KeyMetrics!I14 -> 0.1926194706 | J55: =KeyMetrics!J6/KeyMetrics!J14 -> 0.2491187646 | K55: =KeyMetrics!K6/KeyMetrics!K14 -> 0.2202769388 | L55: Check back the significant role of EBIT/Invested Capital
A56: EPA | B56: =KeyMetrics!B25 -> -94.21233536 | C56: =KeyMetrics!C25 -> 23.55219342 | D56: =KeyMetrics!D25 -> -7.750744084 | E56: =KeyMetrics!E25 -> 100.8850785 | F56: =KeyMetrics!F25 -> 105.2566783 | G56: =KeyMetrics!G25 -> 60.01940301 | H56: =KeyMetrics!H25 -> 161.4979605 | I56: =KeyMetrics!I25 -> 19.54397681 | J56: =KeyMetrics!J25 -> 136.3046444 | K56: =KeyMetrics!K25 -> 252.9810093 | L56: Check back what is really driving EPA (Invested Capital or RoIC, or both)
A57: MktCap | B57: =KeyMetrics!B27 -> 1193.688 | C57: =KeyMetrics!C27 -> 1431.414 | D57: =KeyMetrics!D27 -> 2710.2056 | E57: =KeyMetrics!E27 -> 3993.04 | F57: =KeyMetrics!F27 -> 3674.7216 | G57: =KeyMetrics!G27 -> 2762.79 | H57: =KeyMetrics!H27 -> 6000.808 | I57: =KeyMetrics!I27 -> 7990.298 | J57: =KeyMetrics!J27 -> 7134.044 | K57: =KeyMetrics!K27 -> 6925.956
A58: MktCap Change | C58: =C57-B57 -> 237.726 | D58: =D57-C57 -> 1278.7916 | E58: 1282.8344 | F58: -318.3184 | G58: -911.9316 | H58: 3238.018 | I58: 1989.49 | J58: -856.254 | K58: -208.088
A59: MktCap Change - EPA | C59: =C58-C56 -> 214.1738066 | D59: 1286.542344 | E59: 1181.949321 | F59: -423.5750783 | G59: -971.951003 | H59: 3076.520039 | I59: 1969.946023 | J59: -992.5586444 | K59: -461.0690093
A61: Capex/Net Profits 10 yr | B61: =SUM(KeyMetrics!B$19:K$19)/SUM(KeyMetrics!B$9:K$9) -> 0.329592508
A62: Capex/Net Profits 7 yr | B62: =SUM(KeyMetrics!E$19:K$19)/SUM(KeyMetrics!E$9:K$9) -> 0.3063517027
A63: Capex/Net Profits 5 yr | B63: =SUM(KeyMetrics!G$19:K$19)/SUM(KeyMetrics!G$9:K$9) -> 0.1897220257
A64: Capex/Net Profits 3 yr | B64: =SUM(KeyMetrics!I$19:K$19)/SUM(KeyMetrics!I$9:K$9) -> 0.3293306539
A65: Capex/Depreciation 10 yr | B65: =SUM(KeyMetrics!B$19:K$19)/SUM('Data Sheet'!B26:K26) -> 0.6340709859

Sheet Data Sheet (hidden)
A1: COMPANY NAME | B1: KNR CONSTRUCTIONS LTD | E1: =IF(B2<>B3, "A NEW VERSION OF THE WORKSHEET IS AVAILABLE", "") -> 
A2: LATEST VERSION | B2: 2.1 | E2: PLEASE DO NOT MAKE ANY CHANGES TO THIS SHEET
A3: CURRENT VERSION | B3: 2.1
A5: META
A6: Number of shares | B6: =IF(B9>0, B9/B8, 0) -> 28.12346221
A7: Face Value | B7: 2
A8: Current Price | B8: 341.4
A9: Market Capitalization | B9: 9601.35
A15: PROFIT & LOSS
A16: Report Date | B16: 2015-03-31 | C16: 2016-03-31 | D16: 2017-03-31 | E16: 2018-03-31 | F16: 2019-03-31 | G16: 2020-03-31 | H16: 2021-03-31 | I16: 2022-03-31 | J16: 2023-03-31 | K16: 2024-03-31
A17: Sales | B17: 904.4 | C17: 1191.68 | D17: 1642.13 | E17: 2069.6 | F17: 2291.5 | G17: 2451.68 | H17: 2903.63 | I17: 3605.82 | J17: 4062.36 | K17: 4429.49
A18: Raw Material Cost | B18: 338.1 | C18: 317.86 | D18: 361.85 | E18: 506.86 | F18: 643.78 | G18: 753.28 | H18: 926.45 | I18: 1180.72 | J18: 1494.74 | K18: 1703.3
A19: Change in Inventory | B19: 1.61 | C19: 6.33 | D19: -2.41 | E19: -5.98 | F19: 1.31
A20: Power and Fuel | B20: 3 | C20: 1.85 | D20: 5.19 | E20: 7.42 | F20: 10.33 | G20: 15.47 | H20: 17.23 | I20: 20.65 | J20: 20.23
A21: Other Mfr. Exp | B21: 358.07 | C21: 633.23 | D21: 881.9 | E21: 971.48 | F21: 964.67 | G21: 876.36 | H21: 1055.62 | I21: 1256.4 | J21: 1362.41
A22: Employee Cost | B22: 38.38 | C22: 46.47 | D22: 58.82 | E22: 74.29 | F22: 95.14 | G22: 127.35 | H22: 133.65 | I22: 146.48 | J22: 174.79 | K22: 174.19
A23: Selling and admin | B23: 43.3 | C23: 22.46 | D23: 95.34 | E23: 41.9 | F23: 32.58 | G23: 38.7 | H23: 32.47 | I23: 36.59 | J23: 47.26
A24: Other Expenses | B24: -1.66 | C24: 3.82 | D24: -27.84 | E24: 12.28 | F24: 8.74 | G24: 17.53 | H24: 39.3 | I24: 163.27 | J24: 45.25 | K24: 1504.25
A25: Other Income | B25: 13.62 | C25: 45.75 | D25: 29.57 | E25: 54.94 | F25: 74.76 | G25: 66.39 | H25: 143.99 | I25: 77.73 | J25: 97.67 | K25: 144.69
A26: Depreciation | B26: 55.17 | C26: 70.86 | D26: 115.63 | E26: 193.6 | F26: 230.13 | G26: 254.13 | H26: 189.9 | I26: 164.92 | J26: 180.7 | K26: 156.83
A27: Interest | B27: 13.8 | C27: 57 | D27: 72.67 | E27: 82.5 | F27: 89.84 | G27: 110.78 | H27: 133.21 | I27: 151.14 | J27: 153.4 | K27: 105.67
A28: Profit before tax | B28: 71.47 | C28: 90.21 | D28: 105.73 | E28: 228.23 | F28: 292.36 | G28: 324.47 | H28: 519.79 | I28: 563.38 | J28: 681.25 | K28: 929.94
A29: Tax | B29: -0.28 | C29: -21.89 | D29: 6.99 | E29: -0.73 | F29: 27.47 | G29: 68.53 | H29: 136.96 | I29: 196.99 | J29: 241.84 | K29: 196.17
A30: Net profit | B30: 69.76 | C30: 112.13 | D30: 114.9 | E30: 243.48 | F30: 270.51 | G30: 265.51 | H30: 407.38 | I30: 381.84 | J30: 458.01 | K30: 777.4
A31: Dividend Amount | B31: 2.81 | C31: 5.62 | D31: 7.03 | E31: 5.62 | F31: 5.62 | G31: 7.03 | H31: 7.03 | I31: 7.03 | J31: 7.03 | K31: 7.03
A40: Quarters
A41: Report Date | B41: 2022-03-31 | C41: 2022-06-30 | D41: 2022-09-30 | E41: 2022-12-31 | F41: 2023-03-31 | G41: 2023-06-30 | H41: 2023-09-30 | I41: 2023-12-31 | J41: 2024-03-31 | K41: 2024-06-30
A42: Sales | B42: 1102.09 | C42: 980.45 | D42: 961.65 | E42: 874.93 | F42: 1245.33 | G42: 981.02 | H42: 1038.45 | I42: 996.01 | J42: 1414 | K42: 985
A43: Expenses | B43: 823.22 | C43: 769.19 | D43: 698.36 | E43: 678.14 | F43: 999.36 | G43: 765.28 | H43: 806.86 | I43: 770.1 | J43: 1039.48 | K43: 706.4
A44: Other Income | B44: 19.83 | C44: 10.12 | D44: 9.93 | E44: 68.38 | F44: 10.1 | G44: 7.58 | H44: 5.34 | I44: 6.52 | J44: 125.25 | K44: 20.9
A45: Depreciation | B45: 47.82 | C45: 40.97 | D45: 45.01 | E45: 46.48 | F45: 48.24 | G45: 36.4 | H45: 39.21 | I45: 40.68 | J45: 40.54 | K45: 30.07
A46: Interest | B46: 43.31 | C46: 54.53 | D46: 44.61 | E46: 33.38 | F46: 20.56 | G46: 20.34 | H46: 20.61 | I46: 27.66 | J46: 37.07 | K46: 37.13
A47: Profit before tax | B47: 207.57 | C47: 125.88 | D47: 183.6 | E47: 185.31 | F47: 187.27 | G47: 166.58 | H47: 177.11 | I47: 164.09 | J47: 422.16 | K47: 232.3
A48: Tax | B48: 67.86 | C48: 33.61 | D48: 85.09 | E48: 77.89 | F48: 45.24 | G48: 38.7 | H48: 34.56 | I48: 28.26 | J48: 94.65 | K48: 54.64
A49: Net profit | B49: 139.16 | C49: 89.61 | D49: 115.37 | E49: 105.76 | F49: 147.27 | G49: 137.11 | H49: 147.38 | I49: 139.61 | J49: 353.3 | K49: 172.58
A50: Operating Profit | B50: 278.87 | C50: 211.26 | D50: 263.29 | E50: 196.79 | F50: 245.97 | G50: 215.74 | H50: 231.59 | I50: 225.91 | J50: 374.52 | K50: 278.6
A55: BALANCE SHEET
A56: Report Date | B56: 2015-03-31 | C56: 2016-03-31 | D56: 2017-03-31 | E56: 2018-03-31 | F56: 2019-03-31 | G56: 2020-03-31 | H56: 2021-03-31 | I56: 2022-03-31 | J56: 2023-03-31 | K56: 2024-03-31
A57: Equity Share Capital | B57: 28.12 | C57: 28.12 | D57: 28.12 | E57: 28.12 | F57: 28.12 | G57: 28.12 | H57: 56.25 | I57: 56.25 | J57: 56.25 | K57: 56.25
A58: Reserves | B58: 760.35 | C58: 670.5 | D58: 777.3 | E58: 1011.14 | F58: 1274.2 | G58: 1524.04 | H58: 1903.07 | I58: 2262.96 | J58: 2714.45 | K58: 3497.9
A59: Borrowings | B59: 733.64 | C59: 735.41 | D59: 721.14 | E59: 770.4 | F59: 758.21 | G59: 874.54 | H59: 764.37 | I59: 1463.54 | J59: 652.06 | K59: 1262.43
A60: Other Liabilities | B60: 489.54 | C60: 551.59 | D60: 715.63 | E60: 798.32 | F60: 668.53 | G60: 1076.64 | H60: 1283.49 | I60: 1487.58 | J60: 919.25 | K60: 987.21
A61: Total | B61: 2011.65 | C61: 1985.62 | D61: 2242.19 | E61: 2607.98 | F61: 2729.06 | G61: 3503.34 | H61: 4007.18 | I61: 5270.33 | J61: 4342.01 | K61: 5803.79
A62: Net Block | B62: 234.94 | C62: 737.79 | D62: 1228.44 | E62: 1341.35 | F62: 1320.52 | G62: 1274.82 | H62: 776 | I62: 889.9 | J62: 890.49 | K62: 806.36
A63: Capital Work in Progress | B63: 1108.26 | C63: 428.71 | D63: 91.26 | E63: 1.15 | F63: 0.01 | G63: 10.15 | H63: 2.38 | I63: 20.62 | J63: 2.51 | K63: 2.18
A64: Investments | B64: 23.64 | C64: 105.87 | D64: 73.59 | E64: 52.67 | F64: 51.93 | G64: 65.84 | H64: 61.67 | I64: 73.26 | J64: 72.35 | K64: 115.18
A65: Other Assets | B65: 644.81 | C65: 713.25 | D65: 848.9 | E65: 1212.81 | F65: 1356.6 | G65: 2152.53 | H65: 3167.13 | I65: 4286.55 | J65: 3376.66 | K65: 4880.07
A66: Total | B66: 2011.65 | C66: 1985.62 | D66: 2242.19 | E66: 2607.98 | F66: 2729.06 | G66: 3503.34 | H66: 4007.18 | I66: 5270.33 | J66: 4342.01 | K66: 5803.79
A67: Receivables | B67: 110.13 | C67: 134.6 | D67: 181.69 | E67: 269.14 | F67: 96.8 | G67: 174.65 | H67: 332.87 | I67: 598.41 | J67: 622.9 | K67: 673.98
A68: Inventory | B68: 55.73 | C68: 61.83 | D68: 80.54 | E68: 75.05 | F68: 101.19 | G68: 123.16 | H68: 147.99 | I68: 227.41 | J68: 234.23 | K68: 220.87
A69: Cash & Bank | B69: 43.55 | C69: 45.21 | D69: 33.81 | E69: 51.98 | F69: 27.47 | G69: 82.87 | H69: 147.84 | I69: 259.2 | J69: 220.2 | K69: 410.89
A70: No. of Equity Shares | B70: 28123460 | C70: 28123460 | D70: 140617300 | E70: 140617300 | F70: 140617300 | G70: 140617300 | H70: 281234600 | I70: 281234600 | J70: 281234600
A71: New Bonus Shares
A72: Face value | B72: 10 | C72: 10 | D72: 2 | E72: 2 | F72: 2 | G72: 2 | H72: 2 | I72: 2 | J72: 2 | K72: 2
A80: CASH FLOW:
A81: Report Date | B81: 2015-03-31 | C81: 2016-03-31 | D81: 2017-03-31 | E81: 2018-03-31 | F81: 2019-03-31 | G81: 2020-03-31 | H81: 2021-03-31 | I81: 2022-03-31 | J81: 2023-03-31 | K81: 2024-03-31
A82: Cash from Operating Activity | B82: 78.4 | C82: 245.85 | D82: 365.67 | E82: 220.57 | F82: 255.91 | G82: 230.62 | H82: -75.59 | I82: -336.44 | J82: 1194.13 | K82: -315.64
A83: Cash from Investing Activity | B83: -548.95 | C83: -243.99 | D83: -249.63 | E83: -163.28 | F83: -183.5 | G83: -202.09 | H83: 260.19 | I83: -408.48 | J83: 66.81 | K83: -15.08
A84: Cash from Financing Activity | B84: 449.83 | C84: 1.47 | D84: -123.61 | E84: -37.53 | F84: -107.5 | G84: 2.22 | H84: -97.83 | I84: 764.87 | J84: -1217.35 | K84: 496.13
A85: Net Cash Flow | B85: -20.72 | C85: 3.33 | D85: -7.57 | E85: 19.76 | F85: -35.09 | G85: 30.75 | H85: 86.77 | I85: 19.94 | J85: 43.6 | K85: 165.4
A90: PRICE: | B90: 42.48 | C90: 50.94 | D90: 96.38 | E90: 142 | F90: 130.68 | G90: 98.25 | H90: 213.4 | I90: 284.15 | J90: 253.7 | K90: 246.3
A92: DERIVED:
A93: Adjusted Equity Shares in Cr | B93: 28.1 | C93: 28.1 | D93: 28.12 | E93: 28.12 | F93: 28.12 | G93: 28.12 | H93: 28.12 | I93: 28.12 | J93: 28.12 | K93: 28.12

Sheet KeyMetrics
A1: ='Data Sheet'!B1 -> KNR CONSTRUCTIONS LTD
P2: PETER LYNCH KPIs
B3: ='Data Sheet'!B16 -> 2015-03-31 | C3: ='Data Sheet'!C16 -> 2016-03-31 | D3: ='Data Sheet'!D16 -> 2017-03-31 | E3: ='Data Sheet'!E16 -> 2018-03-31 | F3: ='Data Sheet'!F16 -> 2019-03-31 | G3: ='Data Sheet'!G16 -> 2020-03-31 | H3: ='Data Sheet'!H16 -> 2021-03-31 | I3: ='Data Sheet'!I16 -> 2022-03-31 | J3: ='Data Sheet'!J16 -> 2023-03-31 | K3: ='Data Sheet'!K16 -> 2024-03-31 | P3: Current Price | Q3: ='Data Sheet'!B8 -> 341.4
A4: Gross Profit | B4: ='Data Sheet'!B17-'Data Sheet'!B18 -> 566.3 | C4: ='Data Sheet'!C17-'Data Sheet'!C18 -> 873.82 | D4: ='Data Sheet'!D17-'Data Sheet'!D18 -> 1280.28 | E4: ='Data Sheet'!E17-'Data Sheet'!E18 -> 1562.74 | F4: ='Data Sheet'!F17-'Data Sheet'!F18 -> 1647.72 | G4: ='Data Sheet'!G17-'Data Sheet'!G18 -> 1698.4 | H4: ='Data Sheet'!H17-'Data Sheet'!H18 -> 1977.18 | I4: ='Data Sheet'!I17-'Data Sheet'!I18 -> 2425.1 | J4: ='Data Sheet'!J17-'Data Sheet'!J18 -> 2567.62 | K4: ='Data Sheet'!K17-'Data Sheet'!K18 -> 2726.19 | P4: Cash Held Per Share | Q4: =KeyMetrics!K94/'Data Sheet'!B6 -> 18.70573388
A5: Gross Margin | B5: =B4/'Data Sheet'!B17 -> 0.6261609907 | C5: =C4/'Data Sheet'!C17 -> 0.7332673201 | D5: =D4/'Data Sheet'!D17 -> 0.7796459476 | E5: =E4/'Data Sheet'!E17 -> 0.7550927716 | F5: =F4/'Data Sheet'!F17 -> 0.719057386 | G5: =G4/'Data Sheet'!G17 -> 0.6927494616 | H5: =H4/'Data Sheet'!H17 -> 0.6809338655 | I5: =I4/'Data Sheet'!I17 -> 0.6725515971 | J5: =J4/'Data Sheet'!J17 -> 0.6320513199 | K5: =K4/'Data Sheet'!K17 -> 0.6154636313 | P5: Dividend Paid | Q5: =KeyMetrics!K91/'Data Sheet'!B6 -> 0.2499692231
A6: EBIT | B6: ='Data Sheet'!B28+'Data Sheet'!B27 -> 85.27 | C6: ='Data Sheet'!C28+'Data Sheet'!C27 -> 147.21 | D6: ='Data Sheet'!D28+'Data Sheet'!D27 -> 178.4 | E6: ='Data Sheet'!E28+'Data Sheet'!E27 -> 310.73 | F6: ='Data Sheet'!F28+'Data Sheet'!F27 -> 382.2 | G6: ='Data Sheet'!G28+'Data Sheet'!G27 -> 435.25 | H6: ='Data Sheet'!H28+'Data Sheet'!H27 -> 653 | I6: ='Data Sheet'!I28+'Data Sheet'!I27 -> 714.52 | J6: ='Data Sheet'!J28+'Data Sheet'!J27 -> 834.65 | K6: ='Data Sheet'!K28+'Data Sheet'!K27 -> 1035.61 | P6: Dividend Payout (%) | Q6: =KeyMetrics!K92 -> 0.009042963725
A7: EBITDA | B7: =KeyMetrics!B6+'Data Sheet'!B26 -> 140.44 | C7: =KeyMetrics!C6+'Data Sheet'!C26 -> 218.07 | D7: =KeyMetrics!D6+'Data Sheet'!D26 -> 294.03 | E7: =KeyMetrics!E6+'Data Sheet'!E26 -> 504.33 | F7: =KeyMetrics!F6+'Data Sheet'!F26 -> 612.33 | G7: =KeyMetrics!G6+'Data Sheet'!G26 -> 689.38 | H7: =KeyMetrics!H6+'Data Sheet'!H26 -> 842.9 | I7: =KeyMetrics!I6+'Data Sheet'!I26 -> 879.44 | J7: =KeyMetrics!J6+'Data Sheet'!J26 -> 1015.35 | K7: =KeyMetrics!K6+'Data Sheet'!K26 -> 1192.44 | P7: Current EPS | Q7: =KeyMetrics!K65/'Data Sheet'!B6 -> 27.64240029
A8: Operating Profit (excl Other Income) | B8: =B7-'Data Sheet'!B25 -> 126.82 | C8: =C7-'Data Sheet'!C25 -> 172.32 | D8: =D7-'Data Sheet'!D25 -> 264.46 | E8: =E7-'Data Sheet'!E25 -> 449.39 | F8: =F7-'Data Sheet'!F25 -> 537.57 | G8: =G7-'Data Sheet'!G25 -> 622.99 | H8: =H7-'Data Sheet'!H25 -> 698.91 | I8: =I7-'Data Sheet'!I25 -> 801.71 | J8: =J7-'Data Sheet'!J25 -> 917.68 | K8: =K7-'Data Sheet'!K25 -> 1047.75 | P8: Cash EPS | Q8: =KeyMetrics!K104/'Data Sheet'!B6 -> -11.22336921
A9: PAT | B9: ='Data Sheet'!B30 -> 69.76 | C9: ='Data Sheet'!C30 -> 112.13 | D9: ='Data Sheet'!D30 -> 114.9 | E9: ='Data Sheet'!E30 -> 243.48 | F9: ='Data Sheet'!F30 -> 270.51 | G9: ='Data Sheet'!G30 -> 265.51 | H9: ='Data Sheet'!H30 -> 407.38 | I9: ='Data Sheet'!I30 -> 381.84 | J9: ='Data Sheet'!J30 -> 458.01 | K9: ='Data Sheet'!K30 -> 777.4 | P9: Cash Yield on CMP | Q9: =Q8/Q3 -> -0.03287454368
A10: Dividend | B10: ='Data Sheet'!B31 -> 2.81 | C10: ='Data Sheet'!C31 -> 5.62 | D10: ='Data Sheet'!D31 -> 7.03 | E10: ='Data Sheet'!E31 -> 5.62 | F10: ='Data Sheet'!F31 -> 5.62 | G10: ='Data Sheet'!G31 -> 7.03 | H10: ='Data Sheet'!H31 -> 7.03 | I10: ='Data Sheet'!I31 -> 7.03 | J10: ='Data Sheet'!J31 -> 7.03 | K10: ='Data Sheet'!K31 -> 7.03
B11: =B3 -> 2015-03-31 | C11: 2016-03-31 | D11: 2017-03-31 | E11: 2018-03-31 | F11: 2019-03-31 | G11: 2020-03-31 | H11: 2021-03-31 | I11: 2022-03-31 | J11: 2023-03-31 | K11: 2024-03-31 | P11: A) NET PROFIT MARGIN | Q11: =KeyMetrics!K66 -> 0.1755055322
A12: Networth | B12: ='Data Sheet'!B57+'Data Sheet'!B58 -> 788.47 | C12: ='Data Sheet'!C57+'Data Sheet'!C58 -> 698.62 | D12: ='Data Sheet'!D57+'Data Sheet'!D58 -> 805.42 | E12: ='Data Sheet'!E57+'Data Sheet'!E58 -> 1039.26 | F12: ='Data Sheet'!F57+'Data Sheet'!F58 -> 1302.32 | G12: ='Data Sheet'!G57+'Data Sheet'!G58 -> 1552.16 | H12: ='Data Sheet'!H57+'Data Sheet'!H58 -> 1959.32 | I12: ='Data Sheet'!I57+'Data Sheet'!I58 -> 2319.21 | J12: ='Data Sheet'!J57+'Data Sheet'!J58 -> 2770.7 | K12: ='Data Sheet'!K57+'Data Sheet'!K58 -> 3554.15 | P12: B) ASSET TURNOVER | Q12: =KeyMetrics!K45 -> 0.7632064565
A13: Working Capital | B13: ='Data Sheet'!B65-'Data Sheet'!B60 -> 155.27 | C13: ='Data Sheet'!C65-'Data Sheet'!C60 -> 161.66 | D13: ='Data Sheet'!D65-'Data Sheet'!D60 -> 133.27 | E13: ='Data Sheet'!E65-'Data Sheet'!E60 -> 414.49 | F13: ='Data Sheet'!F65-'Data Sheet'!F60 -> 688.07 | G13: ='Data Sheet'!G65-'Data Sheet'!G60 -> 1075.89 | H13: ='Data Sheet'!H65-'Data Sheet'!H60 -> 1883.64 | I13: ='Data Sheet'!I65-'Data Sheet'!I60 -> 2798.97 | J13: ='Data Sheet'!J65-'Data Sheet'!J60 -> 2457.41 | K13: ='Data Sheet'!K65-'Data Sheet'!K60 -> 3892.86 | P13: C) LEVERAGE | Q13: =(KeyMetrics!K96+KeyMetrics!K97)/KeyMetrics!K97 -> 1.355198852
A14: Invested Capital | B14: ='Data Sheet'!B62+'Data Sheet'!B63+KeyMetrics!B13 -> 1498.47 | C14: ='Data Sheet'!C62+'Data Sheet'!C63+KeyMetrics!C13 -> 1328.16 | D14: ='Data Sheet'!D62+'Data Sheet'!D63+KeyMetrics!D13 -> 1452.97 | E14: ='Data Sheet'!E62+'Data Sheet'!E63+KeyMetrics!E13 -> 1756.99 | F14: ='Data Sheet'!F62+'Data Sheet'!F63+KeyMetrics!F13 -> 2008.6 | G14: ='Data Sheet'!G62+'Data Sheet'!G63+KeyMetrics!G13 -> 2360.86 | H14: ='Data Sheet'!H62+'Data Sheet'!H63+KeyMetrics!H13 -> 2662.02 | I14: ='Data Sheet'!I62+'Data Sheet'!I63+KeyMetrics!I13 -> 3709.49 | J14: ='Data Sheet'!J62+'Data Sheet'!J63+KeyMetrics!J13 -> 3350.41 | K14: ='Data Sheet'!K62+'Data Sheet'!K63+KeyMetrics!K13 -> 4701.4 | P14: ROE = A X B X C | Q14: =Q11*Q12*Q13 -> 0.1815247601
A15: Capital Employed | B15: =B12+'Data Sheet'!B59 -> 1522.11 | C15: =C12+'Data Sheet'!C59 -> 1434.03 | D15: =D12+'Data Sheet'!D59 -> 1526.56 | E15: =E12+'Data Sheet'!E59 -> 1809.66 | F15: =F12+'Data Sheet'!F59 -> 2060.53 | G15: =G12+'Data Sheet'!G59 -> 2426.7 | H15: =H12+'Data Sheet'!H59 -> 2723.69 | I15: =I12+'Data Sheet'!I59 -> 3782.75 | J15: =J12+'Data Sheet'!J59 -> 3422.76 | K15: =K12+'Data Sheet'!K59 -> 4816.58
A16: Total Assets | B16: ='Data Sheet'!B61 -> 2011.65 | C16: ='Data Sheet'!C61 -> 1985.62 | D16: ='Data Sheet'!D61 -> 2242.19 | E16: ='Data Sheet'!E61 -> 2607.98 | F16: ='Data Sheet'!F61 -> 2729.06 | G16: ='Data Sheet'!G61 -> 3503.34 | H16: ='Data Sheet'!H61 -> 4007.18 | I16: ='Data Sheet'!I61 -> 5270.33 | J16: ='Data Sheet'!J61 -> 4342.01 | K16: ='Data Sheet'!K61 -> 5803.79 | P16: Price/Earnings | Q16: =Q3/Q7 -> 12.35059172
B17: =B3 -> 2015-03-31 | C17: 2016-03-31 | D17: 2017-03-31 | E17: 2018-03-31 | F17: 2019-03-31 | G17: 2020-03-31 | H17: 2021-03-31 | I17: 2022-03-31 | J17: 2023-03-31 | K17: 2024-03-31 | P17: Cash Adjusted P/E ratio | Q17: =(Q3-Q4)/Q7 -> 11.67388732
A18: Operating Cash Flow | B18: ='Data Sheet'!B82 -> 78.4 | C18: ='Data Sheet'!C82 -> 245.85 | D18: ='Data Sheet'!D82 -> 365.67 | E18: ='Data Sheet'!E82 -> 220.57 | F18: ='Data Sheet'!F82 -> 255.91 | G18: ='Data Sheet'!G82 -> 230.62 | H18: ='Data Sheet'!H82 -> -75.59 | I18: ='Data Sheet'!I82 -> -336.44 | J18: ='Data Sheet'!J82 -> 1194.13 | K18: ='Data Sheet'!K82 -> -315.64 | P18: Price/Book Value | Q18: =Q3/(KeyMetrics!K97/'Data Sheet'!B6) -> 2.701447604
A19: Capex | C19: =('Data Sheet'!C62-'Data Sheet'!B62)+('Data Sheet'!C63-'Data Sheet'!B63)+'Data Sheet'!C26 -> -105.84 | D19: =('Data Sheet'!D62-'Data Sheet'!C62)+('Data Sheet'!D63-'Data Sheet'!C63)+'Data Sheet'!D26 -> 268.83 | E19: =('Data Sheet'!E62-'Data Sheet'!D62)+('Data Sheet'!E63-'Data Sheet'!D63)+'Data Sheet'!E26 -> 216.4 | F19: =('Data Sheet'!F62-'Data Sheet'!E62)+('Data Sheet'!F63-'Data Sheet'!E63)+'Data Sheet'!F26 -> 208.16 | G19: =('Data Sheet'!G62-'Data Sheet'!F62)+('Data Sheet'!G63-'Data Sheet'!F63)+'Data Sheet'!G26 -> 218.57 | H19: =('Data Sheet'!H62-'Data Sheet'!G62)+('Data Sheet'!H63-'Data Sheet'!G63)+'Data Sheet'!H26 -> -316.69 | I19: =('Data Sheet'!I62-'Data Sheet'!H62)+('Data Sheet'!I63-'Data Sheet'!H63)+'Data Sheet'!I26 -> 297.06 | J19: =('Data Sheet'!J62-'Data Sheet'!I62)+('Data Sheet'!J63-'Data Sheet'!I63)+'Data Sheet'!J26 -> 163.18 | K19: =('Data Sheet'!K62-'Data Sheet'!J62)+('Data Sheet'!K63-'Data Sheet'!J63)+'Data Sheet'!K26 -> 72.37 | P19: Dividend Yield | Q19: =Q5/Q3 -> 0.0007321887026
A20: Free Cash Flow | C20: =C18-C19 -> 351.69 | D20: =D18-D19 -> 96.84 | E20: 4.17 | F20: 47.75 | G20: 12.05 | H20: 241.1 | I20: -633.5 | J20: 1030.95 | K20: -388.01 | P20: Earnings Growth | Q20: =Q89/Q88-1 -> 0.6973428528
A21: Tax Rate | B21: ='Data Sheet'!B29/'Data Sheet'!B28 -> -0.003917727718 | C21: ='Data Sheet'!C29/'Data Sheet'!C28 -> -0.2426560248 | D21: ='Data Sheet'!D29/'Data Sheet'!D28 -> 0.06611179419 | E21: ='Data Sheet'!E29/'Data Sheet'!E28 -> -0.003198527801 | F21: ='Data Sheet'!F29/'Data Sheet'!F28 -> 0.09395950198 | G21: ='Data Sheet'!G29/'Data Sheet'!G28 -> 0.2112059667 | H21: ='Data Sheet'!H29/'Data Sheet'!H28 -> 0.2634910252 | I21: ='Data Sheet'!I29/'Data Sheet'!I28 -> 0.3496574248 | J21: ='Data Sheet'!J29/'Data Sheet'!J28 -> 0.3549944954 | K21: ='Data Sheet'!K29/'Data Sheet'!K28 -> 0.2109490935 | P21: Inverse PEG | Q21: =(Q20+Q19)/Q16 -> 0.05652158678
A22: NOPLAT | B22: =B6*(1-B21) -> 85.60406464 | C22: 182.9313934 | D22: 166.6056559 | E22: 311.7238785 | F22: 346.2886783 | G22: 343.322603 | H22: 480.9403605 | I22: 464.6827768 | J22: 538.3538444 | K22: 817.1490093
A23: RoIC | B23: =(B6/B14)*(1-B21) -> 0.05712764663 | C23: =(C6/C14)*(1-C21) -> 0.1377329489 | D23: 0.1146655856 | E23: 0.1774192674 | F23: 0.1724030062 | G23: 0.1454226862 | H23: 0.1806674482 | I23: 0.1252686425 | J23: 0.1606829744 | K23: 0.1738097182 | P23: Growth Nos:
A24: WACC | B24: 0.12 | C24: 0.12 | D24: 0.12 | E24: 0.12 | F24: 0.12 | G24: 0.12 | H24: 0.12 | I24: 0.12 | J24: 0.12 | K24: 0.12 | P24: 3 Year Sales CAGR | Q24: =RATE(3,,-Q58,Q61,0,) -> 0.1511647528
A25: EPA (Economic Profit Added) | B25: =B14*(B23-B24) -> -94.21233536 | C25: =C14*(C23-C24) -> 23.55219342 | D25: -7.750744084 | E25: 100.8850785 | F25: 105.2566783 | G25: 60.01940301 | H25: 161.4979605 | I25: 19.54397681 | J25: 136.3046444 | K25: 252.9810093 | P25: 3 Years Profit CAGR | Q25: =RATE(3,,-Q86,Q89,0,) -> 0.2403614998
B26: =B3 -> 2015-03-31 | C26: 2016-03-31 | D26: 2017-03-31 | E26: 2018-03-31 | F26: 2019-03-31 | G26: 2020-03-31 | H26: 2021-03-31 | I26: 2022-03-31 | J26: 2023-03-31 | K26: 2024-03-31 | L26: CURRENT | P26: 1 Year Sales Growth | Q26: =RATE(1,,-Q60,Q61,0,) -> 0.09037357595
A27: MktCap | B27: ='Data Sheet'!B90*'Data Sheet'!B93 -> 1193.688 | C27: ='Data Sheet'!C90*'Data Sheet'!C93 -> 1431.414 | D27: ='Data Sheet'!D90*'Data Sheet'!D93 -> 2710.2056 | E27: ='Data Sheet'!E90*'Data Sheet'!E93 -> 3993.04 | F27: ='Data Sheet'!F90*'Data Sheet'!F93 -> 3674.7216 | G27: ='Data Sheet'!G90*'Data Sheet'!G93 -> 2762.79 | H27: ='Data Sheet'!H90*'Data Sheet'!H93 -> 6000.808 | I27: ='Data Sheet'!I90*'Data Sheet'!I93 -> 7990.298 | J27: ='Data Sheet'!J90*'Data Sheet'!J93 -> 7134.044 | K27: ='Data Sheet'!K90*'Data Sheet'!K93 -> 6925.956 | L27: ='Data Sheet'!B9 -> 9601.35 | P27: 1 Year EBIT Growth | Q27: =RATE(1,,-Q81,Q82,0,) -> 0.09668784938
A28: MktCap+Dividend | B28: =B27+'Data Sheet'!B31 -> 1196.498 | C28: =C27+'Data Sheet'!C31 -> 1437.034 | D28: =D27+'Data Sheet'!D31 -> 2717.2356 | E28: =E27+'Data Sheet'!E31 -> 3998.66 | F28: =F27+'Data Sheet'!F31 -> 3680.3416 | G28: =G27+'Data Sheet'!G31 -> 2769.82 | H28: =H27+'Data Sheet'!H31 -> 6007.838 | I28: =I27+'Data Sheet'!I31 -> 7997.328 | J28: =J27+'Data Sheet'!J31 -> 7141.074 | K28: =K27+'Data Sheet'!K31 -> 6932.986 | P28: 1 Year Profit Growth | Q28: =RATE(1,,-Q88,Q89,0,) -> 0.6973428528
A29: Retained Profit | B29: ='Data Sheet'!B30-'Data Sheet'!B31 -> 66.95 | C29: ='Data Sheet'!C30-'Data Sheet'!C31 -> 106.51 | D29: ='Data Sheet'!D30-'Data Sheet'!D31 -> 107.87 | E29: ='Data Sheet'!E30-'Data Sheet'!E31 -> 237.86 | F29: ='Data Sheet'!F30-'Data Sheet'!F31 -> 264.89 | G29: ='Data Sheet'!G30-'Data Sheet'!G31 -> 258.48 | H29: ='Data Sheet'!H30-'Data Sheet'!H31 -> 400.35 | I29: ='Data Sheet'!I30-'Data Sheet'!I31 -> 374.81 | J29: ='Data Sheet'!J30-'Data Sheet'!J31 -> 450.98 | K29: ='Data Sheet'!K30-'Data Sheet'!K31 -> 770.37 | P29: RM/ Sales | Q29: =Q75/Q61 -> 0.3845363687
A30: Shares Outstanding (Mn) | B30: ='Data Sheet'!B70/10^6 -> 28.12346 | C30: ='Data Sheet'!C70/10^6 -> 28.12346 | D30: ='Data Sheet'!D70/10^6 -> 140.6173 | E30: ='Data Sheet'!E70/10^6 -> 140.6173 | F30: ='Data Sheet'!F70/10^6 -> 140.6173 | G30: ='Data Sheet'!G70/10^6 -> 140.6173 | H30: ='Data Sheet'!H70/10^6 -> 281.2346 | I30: ='Data Sheet'!I70/10^6 -> 281.2346 | J30: ='Data Sheet'!J70/10^6 -> 281.2346 | K30: ='Data Sheet'!K70/10^6 -> 0 | P30: 5 yr Avg RM/Sales | Q30: =AVERAGE(Q71/Q57,Q72/Q58,Q73/Q59,Q74/Q60,Q75/Q61) -> 0.3412500249
A31: EPS | B31: =B9/B30*10 -> 24.80491376 | C31: =C9/C30*10 -> 39.87062758 | D31: 8.171114081 | E31: 17.31508143 | F31: 19.23732002 | G31: 18.88174499 | H31: 14.48541538 | I31: 13.57727676 | J31: 16.28569173 | P31: Inventory/Sales | Q31: =Q68/Q61 -> 0.04986352831
A32: EV | B32: =B27+'Data Sheet'!B59-'Data Sheet'!B69 -> 1883.778 | C32: =C27+'Data Sheet'!C59-'Data Sheet'!C69 -> 2121.614 | D32: =D27+'Data Sheet'!D59-'Data Sheet'!D69 -> 3397.5356 | E32: =E27+'Data Sheet'!E59-'Data Sheet'!E69 -> 4711.46 | F32: =F27+'Data Sheet'!F59-'Data Sheet'!F69 -> 4405.4616 | G32: =G27+'Data Sheet'!G59-'Data Sheet'!G69 -> 3554.46 | H32: =H27+'Data Sheet'!H59-'Data Sheet'!H69 -> 6617.338 | I32: =I27+'Data Sheet'!I59-'Data Sheet'!I69 -> 9194.638 | J32: =J27+'Data Sheet'!J59-'Data Sheet'!J69 -> 7565.904 | K32: =K27+'Data Sheet'!K59-'Data Sheet'!K69 -> 7777.496 | P32: 5 yr Avg Inventory/Sales | Q32: =AVERAGE(Q64/Q57,Q65/Q58,Q66/Q59,Q67/Q60,Q68/Q61) -> 0.0749362025
B33: =B3 -> 2015-03-31 | C33: 2016-03-31 | D33: 2017-03-31 | E33: 2018-03-31 | F33: 2019-03-31 | G33: 2020-03-31 | H33: 2021-03-31 | I33: 2022-03-31 | J33: 2023-03-31 | K33: 2024-03-31
A34: Price/Earnings | B34: =B27/'Data Sheet'!B30 -> 17.11135321 | C34: =C27/'Data Sheet'!C30 -> 12.76566485 | D34: =D27/'Data Sheet'!D30 -> 23.5875161 | E34: =E27/'Data Sheet'!E30 -> 16.39986857 | F34: =F27/'Data Sheet'!F30 -> 13.58442054 | G34: =G27/'Data Sheet'!G30 -> 10.40559678 | H34: =H27/'Data Sheet'!H30 -> 14.73024694 | I34: =I27/'Data Sheet'!I30 -> 20.92577519 | J34: =J27/'Data Sheet'!J30 -> 15.57617519 | K34: =K27/'Data Sheet'!K30 -> 8.909127862 | P34: Debt:Equity | Q34: =Q36/Q35 -> 0.355198852
A35: Price/Book | B35: =B27/B12 -> 1.513929509 | C35: 2.048916435 | D35: 3.3649594 | E35: 3.842195408 | F35: 2.821673321 | G35: 1.779964694 | H35: 3.062699304 | I35: 3.445267138 | J35: 2.574816472 | K35: 1.948695469 | P35: Networth | Q35: =Q109 -> 3554.15
A36: Price/CashFlow | B36: =B27/B18 -> 15.22561224 | C36: 5.822306284 | D36: 7.411615938 | E36: 18.10327787 | F36: 14.35942949 | G36: 11.97983696 | H36: -79.38626802 | I36: -23.74954821 | J36: 5.974260759 | K36: -21.94258015 | P36: Long Term Debt | Q36: =Q107 -> 1262.43
A37: Price/Sales | B37: =B27/'Data Sheet'!B17 -> 1.319867315 | C37: =C27/'Data Sheet'!C17 -> 1.201173134 | D37: =D27/'Data Sheet'!D17 -> 1.650420856 | E37: =E27/'Data Sheet'!E17 -> 1.929377658 | F37: =F27/'Data Sheet'!F17 -> 1.603631508 | G37: =G27/'Data Sheet'!G17 -> 1.126896659 | H37: =H27/'Data Sheet'!H17 -> 2.066657253 | I37: =I27/'Data Sheet'!I17 -> 2.215944778 | J37: =J27/'Data Sheet'!J17 -> 1.756132888 | K37: =K27/'Data Sheet'!K17 -> 1.563601227 | P37: Cash & Bank Balance | Q37: ='Data Sheet'!K69 -> 410.89
A38: EV/EBITDA | B38: =B32/B7 -> 13.41340074 | C38: 9.729050305 | D38: 11.55506445 | E38: 9.342018123 | F38: 7.194587232 | G38: 5.156024254 | H38: 7.850679796 | I38: 10.45510552 | J38: 7.45152312 | K38: 6.522337392 | P38: Investments | Q38: ='Data Sheet'!K64 -> 115.18
A39: Dividend Yield | B39: ='Data Sheet'!B31/KeyMetrics!B27 -> 0.002354048964 | C39: ='Data Sheet'!C31/KeyMetrics!C27 -> 0.003926187672 | D39: ='Data Sheet'!D31/KeyMetrics!D27 -> 0.002593899149 | E39: ='Data Sheet'!E31/KeyMetrics!E27 -> 0.001407448961 | F39: ='Data Sheet'!F31/KeyMetrics!F27 -> 0.001529367558 | G39: ='Data Sheet'!G31/KeyMetrics!G27 -> 0.002544529262 | H39: ='Data Sheet'!H31/KeyMetrics!H27 -> 0.001171508903 | I39: ='Data Sheet'!I31/KeyMetrics!I27 -> 0.0008798169981 | J39: ='Data Sheet'!J31/KeyMetrics!J27 -> 0.0009854158455 | K39: ='Data Sheet'!K31/KeyMetrics!K27 -> 0.00101502233
B40: =B3 -> 2015-03-31 | C40: 2016-03-31 | D40: 2017-03-31 | E40: 2018-03-31 | F40: 2019-03-31 | G40: 2020-03-31 | H40: 2021-03-31 | I40: 2022-03-31 | J40: 2023-03-31 | K40: 2024-03-31 | L40: Z-Weights | P40: Management Effectiveness:
A41: Working Capital/Total Assets | B41: =B13/B16 -> 0.07718539507 | C41: 0.08141537656 | D41: 0.05943742502 | E41: 0.1589314335 | F41: 0.252127106 | G41: 0.3071040778 | H41: 0.4700662311 | I41: 0.5310805965 | J41: 0.5659613865 | K41: 0.6707444618 | L41: 1.2 | P41: Book Value | Q41: =KeyMetrics!K97/'Data Sheet'!B6 -> 126.3766877
A42: Retained Profits/Total Assets | B42: =B29/B16 -> 0.03328113737 | C42: 0.05364067646 | D42: 0.04810921465 | E42: 0.09120468715 | F42: 0.09706272489 | G42: 0.0737810204 | H42: 0.09990816484 | I42: 0.07111698888 | J42: 0.1038643393 | K42: 0.1327356779 | L42: 1.4 | P42: ROE | Q42: =Q7/Q41 -> 0.2187302168
A43: EBIT/Total Assets | B43: =B6/B16 -> 0.04238808938 | C43: 0.0741380526 | D43: 0.07956506808 | E43: 0.1191458523 | F43: 0.1400482217 | G43: 0.1242385838 | H43: 0.1629574913 | I43: 0.1355740532 | J43: 0.1922266416 | K43: 0.178436849 | L43: 3.3 | P43: ROCE | Q43: =Q50/(AVERAGE(Q106,Q107)+AVERAGE(Q108,Q109)) -> 0.1887044351
A44: Market Cap/Total Liabilities | B44: =B27/B16 -> 0.5933875177 | C44: =C27/C16 -> 0.7208902005 | D44: 1.208731463 | E44: 1.531085361 | F44: 1.346515504 | G44: 0.7886160064 | H44: 1.497513962 | I44: 1.516090643 | J44: 1.643027999 | K44: 1.193350552 | L44: 0.6 | P44: Shares ( in Cr) | Q44: ='Data Sheet'!B6 -> 28.12346221
A45: Sales/Total Assets | B45: ='Data Sheet'!B17/KeyMetrics!B16 -> 0.4495811896 | C45: ='Data Sheet'!C17/KeyMetrics!C16 -> 0.6001551153 | D45: ='Data Sheet'!D17/KeyMetrics!D16 -> 0.73237772 | E45: ='Data Sheet'!E17/KeyMetrics!E16 -> 0.7935643678 | F45: ='Data Sheet'!F17/KeyMetrics!F16 -> 0.8396664053 | G45: ='Data Sheet'!G17/KeyMetrics!G16 -> 0.6998121792 | H45: ='Data Sheet'!H17/KeyMetrics!H16 -> 0.7246068307 | I45: ='Data Sheet'!I17/KeyMetrics!I16 -> 0.6841734768 | J45: ='Data Sheet'!J17/KeyMetrics!J16 -> 0.9355943446 | K45: ='Data Sheet'!K17/KeyMetrics!K16 -> 0.7632064565 | L45: 1 | P45: Margins:
A46: Altman Z-Score | B46: =$L$41*B41+$L$42*B42+$L$43*B43+$L$44*B44+$L$45*B45 -> 1.084710462 | C46: 1.450140208 | D46: 1.858859133 | E46: 2.423801179 | F46: 2.548175181 | G46: 2.054787431 | H46: 2.864825838 | I46: 2.778082739 | J46: 3.3803228 | K46: 3.058781693 | P46: Operating | Q46: =Q82/Q61 -> 0.2719455287
A47: Z > 2.99 -“Safe” Zones | P47: Net Profit | Q47: =Q89/Q61 -> 0.1755055322
A48: 1.81 < Z < 2.99 -“Grey” Zones
A49: Z < 1.81 -“Distress” Zones | P49: Latest Earnings:
P50: Net Profit (TTM) | Q50: =SUM(Q51:Q54) -> 777.4
A51: 10 YEARS NUMBERS | P51: Q1 | Q51: ='Data Sheet'!G49 -> 137.11
P52: Q2 | Q52: ='Data Sheet'!H49 -> 147.38
B53: ='Profit & Loss'!B3 -> 2015-03-31 | C53: ='Profit & Loss'!C3 -> 2016-03-31 | D53: ='Profit & Loss'!D3 -> 2017-03-31 | E53: ='Profit & Loss'!E3 -> 2018-03-31 | F53: ='Profit & Loss'!F3 -> 2019-03-31 | G53: ='Profit & Loss'!G3 -> 2020-03-31 | H53: ='Profit & Loss'!H3 -> 2021-03-31 | I53: ='Profit & Loss'!I3 -> 2022-03-31 | J53: ='Profit & Loss'!J3 -> 2023-03-31 | K53: ='Profit & Loss'!K3 -> 2024-03-31 | L53: Total 10 Yrs | M53: CAGR | P53: Q3 | Q53: ='Data Sheet'!I49 -> 139.61
A54: ='Profit & Loss'!A4 -> Sales | B54: ='Profit & Loss'!B4 -> 904.4 | C54: ='Profit & Loss'!C4 -> 1191.68 | D54: ='Profit & Loss'!D4 -> 1642.13 | E54: ='Profit & Loss'!E4 -> 2069.6 | F54: ='Profit & Loss'!F4 -> 2291.5 | G54: ='Profit & Loss'!G4 -> 2451.68 | H54: ='Profit & Loss'!H4 -> 2903.63 | I54: ='Profit & Loss'!I4 -> 3605.82 | J54: ='Profit & Loss'!J4 -> 4062.36 | K54: ='Profit & Loss'!K4 -> 4429.49 | L54: =SUM(B54:K54) -> 25552.29 | M54: =RATE(9,,-B54,K54,0,0.2) -> 0.1930699521 | P54: Q4 | Q54: ='Data Sheet'!J49 -> 353.3
A55: Receivables | B55: ='Data Sheet'!B67 -> 110.13 | C55: ='Data Sheet'!C67 -> 134.6 | D55: ='Data Sheet'!D67 -> 181.69 | E55: ='Data Sheet'!E67 -> 269.14 | F55: ='Data Sheet'!F67 -> 96.8 | G55: ='Data Sheet'!G67 -> 174.65 | H55: ='Data Sheet'!H67 -> 332.87 | I55: ='Data Sheet'!I67 -> 598.41 | J55: ='Data Sheet'!J67 -> 622.9 | K55: ='Data Sheet'!K67 -> 673.98 | M55: =RATE(9,,-B55,K55,0,0.2) -> 0.2229697298
A56: % Sales | B56: =B55/B54 -> 0.1217713401 | C56: 0.1129497852 | D56: 0.1106428845 | E56: 0.130044453 | F56: 0.04224307222 | G56: 0.07123686615 | H56: 0.1146392619 | I56: 0.1659567033 | J56: 0.1533345149 | K56: 0.1521574719 | P56: Last 5 Years: Sales
A57: EBITDA | B57: ='Profit & Loss'!B6+'Data Sheet'!B26 -> 181.99 | C57: ='Profit & Loss'!C6+'Data Sheet'!C26 -> 243.18 | D57: ='Profit & Loss'!D6+'Data Sheet'!D26 -> 380.09 | E57: ='Profit & Loss'!E6+'Data Sheet'!E26 -> 642.99 | F57: ='Profit & Loss'!F6+'Data Sheet'!F26 -> 767.7 | G57: ='Profit & Loss'!G6+'Data Sheet'!G26 -> 877.12 | H57: ='Profit & Loss'!H6+'Data Sheet'!H26 -> 888.81 | I57: ='Profit & Loss'!I6+'Data Sheet'!I26 -> 966.63 | J57: ='Profit & Loss'!J6+'Data Sheet'!J26 -> 1098.38 | K57: ='Profit & Loss'!K6+'Data Sheet'!K26 -> 1204.58 | M57: =RATE(9,,-B57,K57,0,0.2) -> 0.2336690811 | P57: 2014 | Q57: =KeyMetrics!G54 -> 2451.68
A58: EBITDA % | B58: =B57/B54 -> 0.201227333 | C58: 0.2040648496 | D58: 0.2314615773 | E58: 0.3106832238 | F58: 0.3350207288 | G58: 0.3577628402 | H58: 0.3061030503 | I58: 0.2680749455 | J58: 0.2703797792 | K58: 0.2719455287 | P58: =P57+1 -> 2015 | Q58: =KeyMetrics!H54 -> 2903.63
A59: ='Profit & Loss'!A7 -> Other Income | B59: ='Profit & Loss'!B7 -> 13.62 | C59: ='Profit & Loss'!C7 -> 45.75 | D59: ='Profit & Loss'!D7 -> 29.57 | E59: ='Profit & Loss'!E7 -> 54.94 | F59: ='Profit & Loss'!F7 -> 74.76 | G59: ='Profit & Loss'!G7 -> 66.39 | H59: ='Profit & Loss'!H7 -> 143.99 | I59: ='Profit & Loss'!I7 -> 77.73 | J59: ='Profit & Loss'!J7 -> 97.67 | K59: ='Profit & Loss'!K7 -> 144.69 | P59: =P58+1 -> 2016 | Q59: =KeyMetrics!I54 -> 3605.82
A60: ='Profit & Loss'!A8 -> Depreciation | B60: ='Profit & Loss'!B8 -> 55.17 | C60: ='Profit & Loss'!C8 -> 70.86 | D60: ='Profit & Loss'!D8 -> 115.63 | E60: ='Profit & Loss'!E8 -> 193.6 | F60: ='Profit & Loss'!F8 -> 230.13 | G60: ='Profit & Loss'!G8 -> 254.13 | H60: ='Profit & Loss'!H8 -> 189.9 | I60: ='Profit & Loss'!I8 -> 164.92 | J60: ='Profit & Loss'!J8 -> 180.7 | K60: ='Profit & Loss'!K8 -> 156.83 | L60: =SUM(B60:K60) -> 1611.87 | P60: =P59+1 -> 2017 | Q60: =KeyMetrics!J54 -> 4062.36
A61: ='Profit & Loss'!A9 -> Interest | B61: ='Profit & Loss'!B9 -> 13.8 | C61: ='Profit & Loss'!C9 -> 57 | D61: ='Profit & Loss'!D9 -> 72.67 | E61: ='Profit & Loss'!E9 -> 82.5 | F61: ='Profit & Loss'!F9 -> 89.84 | G61: ='Profit & Loss'!G9 -> 110.78 | H61: ='Profit & Loss'!H9 -> 133.21 | I61: ='Profit & Loss'!I9 -> 151.14 | J61: ='Profit & Loss'!J9 -> 153.4 | K61: ='Profit & Loss'!K9 -> 105.67 | L61: =SUM(B61:K61) -> 970.01 | P61: =P60+1 -> 2018 | Q61: =KeyMetrics!K54 -> 4429.49
A62: ='Profit & Loss'!A10 -> Profit before tax | B62: ='Profit & Loss'!B10 -> 71.47 | C62: ='Profit & Loss'!C10 -> 90.21 | D62: ='Profit & Loss'!D10 -> 105.73 | E62: ='Profit & Loss'!E10 -> 228.23 | F62: ='Profit & Loss'!F10 -> 292.36 | G62: ='Profit & Loss'!G10 -> 324.47 | H62: ='Profit & Loss'!H10 -> 519.79 | I62: ='Profit & Loss'!I10 -> 563.38 | J62: ='Profit & Loss'!J10 -> 681.25 | K62: ='Profit & Loss'!K10 -> 929.94 | M62: =RATE(9,,-B62,K62,0,0.2) -> 0.3298864829
A63: Tax% | B63: =B64/B62 -> -0.003917727718 | C63: -0.2426560248 | D63: 0.06611179419 | E63: -0.003198527801 | F63: 0.09395950198 | G63: 0.2112059667 | H63: 0.2634910252 | I63: 0.3496574248 | J63: 0.3549944954 | K63: 0.2109490935 | P63: Last 5 Years: Inventory
A64: ='Profit & Loss'!A11 -> Tax | B64: ='Profit & Loss'!B11 -> -0.28 | C64: ='Profit & Loss'!C11 -> -21.89 | D64: ='Profit & Loss'!D11 -> 6.99 | E64: ='Profit & Loss'!E11 -> -0.73 | F64: ='Profit & Loss'!F11 -> 27.47 | G64: ='Profit & Loss'!G11 -> 68.53 | H64: ='Profit & Loss'!H11 -> 136.96 | I64: ='Profit & Loss'!I11 -> 196.99 | J64: ='Profit & Loss'!J11 -> 241.84 | K64: ='Profit & Loss'!K11 -> 196.17 | P64: =P57 -> 2014 | Q64: ='Data Sheet'!G68 -> 123.16
A65: Net Profit after Tax | B65: ='Profit & Loss'!B12 -> 69.76 | C65: ='Profit & Loss'!C12 -> 112.13 | D65: ='Profit & Loss'!D12 -> 114.9 | E65: ='Profit & Loss'!E12 -> 243.48 | F65: ='Profit & Loss'!F12 -> 270.51 | G65: ='Profit & Loss'!G12 -> 265.51 | H65: ='Profit & Loss'!H12 -> 407.38 | I65: ='Profit & Loss'!I12 -> 381.84 | J65: ='Profit & Loss'!J12 -> 458.01 | K65: ='Profit & Loss'!K12 -> 777.4 | L65: =SUM(B65:K65) -> 3100.92 | M65: =RATE(9,,-B65,K65,0,0.2) -> 0.3071865261 | P65: =P58 -> 2015 | Q65: ='Data Sheet'!H68 -> 147.99
A66: NPM% | B66: =B65/B54 -> 0.0771340115 | C66: 0.09409405209 | D66: 0.06997009981 | E66: 0.1176459219 | F66: 0.1180493127 | G66: 0.1082971677 | H66: 0.1403002449 | I66: 0.105895469 | J66: 0.1127448084 | K66: 0.1755055322 | P66: =P59 -> 2016 | Q66: ='Data Sheet'!I67 -> 598.41
A67: Cash from Operations | B67: ='Cash Flow'!B4 -> 78.4 | C67: ='Cash Flow'!C4 -> 245.85 | D67: ='Cash Flow'!D4 -> 365.67 | E67: ='Cash Flow'!E4 -> 220.57 | F67: ='Cash Flow'!F4 -> 255.91 | G67: ='Cash Flow'!G4 -> 230.62 | H67: ='Cash Flow'!H4 -> -75.59 | I67: ='Cash Flow'!I4 -> -336.44 | J67: ='Cash Flow'!J4 -> 1194.13 | K67: ='Cash Flow'!K4 -> -315.64 | L67: =SUM(B67:K67) -> 1863.48 | M67: =RATE(9,,-B67,K67,0,0.2) ->  | P67: =P60 -> 2017 | Q67: ='Data Sheet'!J68 -> 234.23
A68: Capex(NFA+WIP Change+Dep) | C68: =('Balance Sheet'!C10-'Balance Sheet'!B10)+('Balance Sheet'!C11-'Balance Sheet'!B11)+C60 -> -105.84 | D68: =('Balance Sheet'!D10-'Balance Sheet'!C10)+('Balance Sheet'!D11-'Balance Sheet'!C11)+D60 -> 268.83 | E68: =('Balance Sheet'!E10-'Balance Sheet'!D10)+('Balance Sheet'!E11-'Balance Sheet'!D11)+E60 -> 216.4 | F68: =('Balance Sheet'!F10-'Balance Sheet'!E10)+('Balance Sheet'!F11-'Balance Sheet'!E11)+F60 -> 208.16 | G68: =('Balance Sheet'!G10-'Balance Sheet'!F10)+('Balance Sheet'!G11-'Balance Sheet'!F11)+G60 -> 218.57 | H68: =('Balance Sheet'!H10-'Balance Sheet'!G10)+('Balance Sheet'!H11-'Balance Sheet'!G11)+H60 -> -316.69 | I68: =('Balance Sheet'!I10-'Balance Sheet'!H10)+('Balance Sheet'!I11-'Balance Sheet'!H11)+I60 -> 297.06 | J68: =('Balance Sheet'!J10-'Balance Sheet'!I10)+('Balance Sheet'!J11-'Balance Sheet'!I11)+J60 -> 163.18 | K68: =('Balance Sheet'!K10-'Balance Sheet'!J10)+('Balance Sheet'!K11-'Balance Sheet'!J11)+K60 -> 72.37 | L68: =SUM(B68:K68) -> 1022.04 | M68: =RATE(8,,-C68,K68,0,0.2) ->  | P68: =P61 -> 2018 | Q68: ='Data Sheet'!K68 -> 220.87
K69: FCF | L69: =L67-L68 -> 841.44
A70: YoY Sales Growth (%) | C70: =C54/B54-1 -> 0.3176470588 | D70: 0.3779957707 | E70: 0.2603143478 | F70: 0.1072187862 | G70: 0.06990181104 | H70: 0.1843429811 | I70: 0.2418317761 | J70: 0.1266119773 | K70: 0.09037357595 | P70: Last 5 Years: RM
A71: YoY Op. Profit Growth (%) | C71: =C57/B57-1 -> 0.3362272652 | D71: 0.5629986019 | E71: 0.6916782867 | F71: 0.1939532497 | G71: 0.142529634 | H71: 0.01332770887 | I71: 0.08755527053 | J71: 0.1362982734 | K71: 0.09668784938 | L71: Avg Op. Lev | P71: =P57 -> 2014 | Q71: ='Data Sheet'!G18 -> 753.28
A72: Business Risk (Op. Leverage) | C72: =C71/C70-1 -> 0.0584932424 | D72: 0.4894309554 | E72: 1.657088603 | F72: 0.8089483799 | G72: 1.038997729 | H72: -0.9277015659 | I72: -0.6379496857 | J72: 0.07650378966 | K72: 0.06986858007 | L72: =AVERAGE(C72:K72) -> 0.2926311142 | P72: =P58 -> 2015 | Q72: ='Data Sheet'!H18 -> 926.45
P73: =P59 -> 2016 | Q73: ='Data Sheet'!I18 -> 1180.72
A74: Self Sustainable Growth Rate(SSGR) | C74: =((1-C82) + C81*C66*(1-'Profit & Loss'!B18)) - 1 -> 0.04981538864 | D74: =((1-D82) + D81*D66*(1-'Profit & Loss'!C18)) - 1 -> -0.00528217373 | E74: =((1-E82) + E81*E66*(1-'Profit & Loss'!D18)) - 1 -> 0.02608044719 | F74: =((1-F82) + F81*F66*(1-'Profit & Loss'!E18)) - 1 -> 0.02585049385 | G74: =((1-G82) + G81*G66*(1-'Profit & Loss'!F18)) - 1 -> 0.00459976927 | H74: =((1-H82) + H81*H66*(1-'Profit & Loss'!G18)) - 1 -> 0.266357808 | I74: =((1-I82) + I81*I66*(1-'Profit & Loss'!H18)) - 1 -> 0.2363532239 | J74: =((1-J82) + J81*J66*(1-'Profit & Loss'!I18)) - 1 -> 0.3019434753 | K74: =((1-K82) + K81*K66*(1-'Profit & Loss'!J18)) - 1 -> 0.7547964678 | P74: =P60 -> 2017 | Q74: ='Data Sheet'!J18 -> 1494.74
A75: Growth in Sales | C75: =C54/B54-1 -> 0.3176470588 | D75: 0.3779957707 | E75: 0.2603143478 | F75: 0.1072187862 | G75: 0.06990181104 | H75: 0.1843429811 | I75: 0.2418317761 | J75: 0.1266119773 | K75: 0.09037357595 | L75: Req. Funds ? | P75: =P61 -> 2018 | Q75: ='Data Sheet'!K18 -> 1703.3
A76: Need for External Funds (Debt/Equity) | C76: =IF(C75>C74,"YES","NO") -> YES | D76: YES | E76: YES | F76: YES | G76: YES | H76: NO | I76: YES | J76: NO | K76: NO | L76: =IF(COUNTIF(C76:K76,"YES")>6,"Yes","No") -> No
A77: Return on Invested Capital (ROIC) | B77: =KeyMetrics!B23 -> 0.05712764663 | C77: =KeyMetrics!C23 -> 0.1377329489 | D77: =KeyMetrics!D23 -> 0.1146655856 | E77: =KeyMetrics!E23 -> 0.1774192674 | F77: =KeyMetrics!F23 -> 0.1724030062 | G77: =KeyMetrics!G23 -> 0.1454226862 | H77: =KeyMetrics!H23 -> 0.1806674482 | I77: =KeyMetrics!I23 -> 0.1252686425 | J77: =KeyMetrics!J23 -> 0.1606829744 | K77: =KeyMetrics!K23 -> 0.1738097182 | P77: Last 5 Years: EBIT
P78: =P57 -> 2014 | Q78: =KeyMetrics!G57 -> 877.12
B79: =B53 -> 2015-03-31 | C79: 2016-03-31 | D79: 2017-03-31 | E79: 2018-03-31 | F79: 2019-03-31 | G79: 2020-03-31 | H79: 2021-03-31 | I79: 2022-03-31 | J79: 2023-03-31 | K79: 2024-03-31 | P79: =P58 -> 2015 | Q79: =KeyMetrics!H57 -> 888.81
A80: Capital Intensity (EBITDA / EBIT) | B80: =(B57)/(B57-B60) -> 1.435026021 | C80: 1.411211699 | D80: 1.437230583 | E80: 1.430806204 | F80: 1.428093086 | G80: 1.40791987 | H80: 1.271708804 | I80: 1.205710294 | J80: 1.196909598 | K80: 1.149682653 | P80: =P59 -> 2016 | Q80: =KeyMetrics!I57 -> 966.63
A81: Net Fixed Assets Turns (Higher is better) | B81: ='Profit & Loss'!B4/'Balance Sheet'!B10 -> 3.849493488 | C81: ='Profit & Loss'!C4/'Balance Sheet'!C10 -> 1.615202158 | D81: ='Profit & Loss'!D4/'Balance Sheet'!D10 -> 1.336760444 | E81: ='Profit & Loss'!E4/'Balance Sheet'!E10 -> 1.542923174 | F81: ='Profit & Loss'!F4/'Balance Sheet'!F10 -> 1.735301245 | G81: ='Profit & Loss'!G4/'Balance Sheet'!G10 -> 1.923157779 | H81: ='Profit & Loss'!H4/'Balance Sheet'!H10 -> 3.741791237 | I81: ='Profit & Loss'!I4/'Balance Sheet'!I10 -> 4.05193842 | J81: ='Profit & Loss'!J4/'Balance Sheet'!J10 -> 4.56193781 | K81: ='Profit & Loss'!K4/'Balance Sheet'!K10 -> 5.493191627 | P81: =P60 -> 2017 | Q81: =KeyMetrics!J57 -> 1098.38
A82: Depreciation/NFA (consistency) | B82: =B60/'Balance Sheet'!B10 -> 0.234825913 | C82: =C60/'Balance Sheet'!C10 -> 0.09604358964 | D82: =D60/'Balance Sheet'!D10 -> 0.09412751132 | E82: =E60/'Balance Sheet'!E10 -> 0.1443322026 | F82: =F60/'Balance Sheet'!F10 -> 0.1742722564 | G82: =G60/'Balance Sheet'!G10 -> 0.19934579 | H82: =H60/'Balance Sheet'!H10 -> 0.2447164948 | I82: =I60/'Balance Sheet'!I10 -> 0.1853241937 | J82: =J60/'Balance Sheet'!J10 -> 0.2029219868 | K82: =K60/'Balance Sheet'!K10 -> 0.1944912942 | P82: =P61 -> 2018 | Q82: =KeyMetrics!K57 -> 1204.58
A83: Receivable days (Lower is better) | B83: ='Balance Sheet'!B22 -> 44.44653914 | C83: ='Balance Sheet'!C22 -> 41.22667159 | D83: ='Balance Sheet'!D22 -> 40.38465286 | E83: ='Balance Sheet'!E22 -> 47.46622536 | F83: ='Balance Sheet'!F22 -> 15.41872136 | G83: ='Balance Sheet'!G22 -> 26.00145614 | H83: ='Balance Sheet'!H22 -> 41.84333059 | I83: ='Balance Sheet'!I22 -> 60.57419672 | J83: ='Balance Sheet'!J22 -> 55.96709794 | K83: ='Balance Sheet'!K22 -> 55.53747723
A84: Inventory Turnover (Higher is better) | B84: ='Balance Sheet'!B20 -> 16.22824332 | C84: ='Balance Sheet'!C20 -> 19.27349183 | D84: ='Balance Sheet'!D20 -> 20.38899926 | E84: ='Balance Sheet'!E20 -> 27.57628248 | F84: ='Balance Sheet'!F20 -> 22.64551833 | G84: ='Balance Sheet'!G20 -> 19.90646314 | H84: ='Balance Sheet'!H20 -> 19.62044733 | I84: ='Balance Sheet'!I20 -> 15.85603096 | J84: ='Balance Sheet'!J20 -> 17.34346582 | K84: ='Balance Sheet'!K20 -> 20.05473808 | P84: Last 5 Years: Profits
A85: Working Capital Cycle | B85: ='Balance Sheet'!B22+'Balance Sheet'!B21 -> 66.93819107 | C85: ='Balance Sheet'!C22+'Balance Sheet'!C21 -> 60.16459956 | D85: ='Balance Sheet'!D22+'Balance Sheet'!D21 -> 58.28646331 | E85: ='Balance Sheet'!E22+'Balance Sheet'!E21 -> 60.70223715 | F85: ='Balance Sheet'!F22+'Balance Sheet'!F21 -> 31.53670085 | G85: ='Balance Sheet'!G22+'Balance Sheet'!G21 -> 44.33720959 | H85: ='Balance Sheet'!H22+'Balance Sheet'!H21 -> 60.4463723 | I85: ='Balance Sheet'!I22+'Balance Sheet'!I21 -> 83.59382887 | J85: ='Balance Sheet'!J22+'Balance Sheet'!J21 -> 77.01248781 | K85: ='Balance Sheet'!K22+'Balance Sheet'!K21 -> 73.73766506 | P85: =P57 -> 2014 | Q85: =KeyMetrics!G65 -> 265.51
P86: =P58 -> 2015 | Q86: =KeyMetrics!H65 -> 407.38
A87: Net Fixed Assets | B87: ='Balance Sheet'!B10 -> 234.94 | C87: ='Balance Sheet'!C10 -> 737.79 | D87: ='Balance Sheet'!D10 -> 1228.44 | E87: ='Balance Sheet'!E10 -> 1341.35 | F87: ='Balance Sheet'!F10 -> 1320.52 | G87: ='Balance Sheet'!G10 -> 1274.82 | H87: ='Balance Sheet'!H10 -> 776 | I87: ='Balance Sheet'!I10 -> 889.9 | J87: ='Balance Sheet'!J10 -> 890.49 | K87: ='Balance Sheet'!K10 -> 806.36 | P87: =P59 -> 2016 | Q87: =KeyMetrics!I65 -> 381.84
A88: CWIP | B88: ='Balance Sheet'!B11 -> 1108.26 | C88: ='Balance Sheet'!C11 -> 428.71 | D88: ='Balance Sheet'!D11 -> 91.26 | E88: ='Balance Sheet'!E11 -> 1.15 | F88: ='Balance Sheet'!F11 -> 0.01 | G88: ='Balance Sheet'!G11 -> 10.15 | H88: ='Balance Sheet'!H11 -> 2.38 | I88: ='Balance Sheet'!I11 -> 20.62 | J88: ='Balance Sheet'!J11 -> 2.51 | K88: ='Balance Sheet'!K11 -> 2.18 | P88: =P60 -> 2017 | Q88: =KeyMetrics!J65 -> 458.01
A89: Share Capital | B89: ='Balance Sheet'!B4 -> 28.12 | C89: ='Balance Sheet'!C4 -> 28.12 | D89: ='Balance Sheet'!D4 -> 28.12 | E89: ='Balance Sheet'!E4 -> 28.12 | F89: ='Balance Sheet'!F4 -> 28.12 | G89: ='Balance Sheet'!G4 -> 28.12 | H89: ='Balance Sheet'!H4 -> 56.25 | I89: ='Balance Sheet'!I4 -> 56.25 | J89: ='Balance Sheet'!J4 -> 56.25 | K89: ='Balance Sheet'!K4 -> 56.25 | P89: =P61 -> 2018 | Q89: =KeyMetrics!K65 -> 777.4
A91: Dividend Paid (Div) without DDT | B91: ='Data Sheet'!B31 -> 2.81 | C91: ='Data Sheet'!C31 -> 5.62 | D91: ='Data Sheet'!D31 -> 7.03 | E91: ='Data Sheet'!E31 -> 5.62 | F91: ='Data Sheet'!F31 -> 5.62 | G91: ='Data Sheet'!G31 -> 7.03 | H91: ='Data Sheet'!H31 -> 7.03 | I91: ='Data Sheet'!I31 -> 7.03 | J91: ='Data Sheet'!J31 -> 7.03 | K91: ='Data Sheet'!K31 -> 7.03 | P91: Last 5 Years: Dividends
A92: Dividend Payout (Div/PAT) | B92: =B91/B65 -> 0.0402809633 | C92: 0.05012039597 | D92: 0.06118363795 | E92: 0.02308197799 | F92: 0.02077557207 | G92: 0.02647734549 | H92: 0.01725661545 | I92: 0.01841085271 | J92: 0.01534900985 | K92: 0.009042963725 | P92: =P57 -> 2014 | Q92: ='Data Sheet'!G31 -> 7.03
A93: Retained Earnings (PAT-Div) | B93: =B65-B91 -> 66.95 | C93: 106.51 | D93: 107.87 | E93: 237.86 | F93: 264.89 | G93: 258.48 | H93: 400.35 | I93: 374.81 | J93: 450.98 | K93: 770.37 | L93: =SUM(B93:K93) -> 3039.07 | P93: =P58 -> 2015 | Q93: ='Data Sheet'!H31 -> 7.03
A94: Cash + Investments (CI+NCI) | B94: ='Data Sheet'!B69+'Data Sheet'!B64 -> 67.19 | C94: ='Data Sheet'!C69+'Data Sheet'!C64 -> 151.08 | D94: ='Data Sheet'!D69+'Data Sheet'!D64 -> 107.4 | E94: ='Data Sheet'!E69+'Data Sheet'!E64 -> 104.65 | F94: ='Data Sheet'!F69+'Data Sheet'!F64 -> 79.4 | G94: ='Data Sheet'!G69+'Data Sheet'!G64 -> 148.71 | H94: ='Data Sheet'!H69+'Data Sheet'!H64 -> 209.51 | I94: ='Data Sheet'!I69+'Data Sheet'!I64 -> 332.46 | J94: ='Data Sheet'!J69+'Data Sheet'!J64 -> 292.55 | K94: ='Data Sheet'!K69+'Data Sheet'!K64 -> 526.07 | P94: =P59 -> 2016 | Q94: ='Data Sheet'!I31 -> 7.03
B95: =B53 -> 2015-03-31 | C95: 2016-03-31 | D95: 2017-03-31 | E95: 2018-03-31 | F95: 2019-03-31 | G95: 2020-03-31 | H95: 2021-03-31 | I95: 2022-03-31 | J95: 2023-03-31 | K95: 2024-03-31 | P95: =P60 -> 2017 | Q95: ='Data Sheet'!J31 -> 7.03
A96: Total Debt(D) | B96: ='Balance Sheet'!B6 -> 733.64 | C96: ='Balance Sheet'!C6 -> 735.41 | D96: ='Balance Sheet'!D6 -> 721.14 | E96: ='Balance Sheet'!E6 -> 770.4 | F96: ='Balance Sheet'!F6 -> 758.21 | G96: ='Balance Sheet'!G6 -> 874.54 | H96: ='Balance Sheet'!H6 -> 764.37 | I96: ='Balance Sheet'!I6 -> 1463.54 | J96: ='Balance Sheet'!J6 -> 652.06 | K96: ='Balance Sheet'!K6 -> 1262.43 | P96: =P61 -> 2018 | Q96: ='Data Sheet'!K31 -> 7.03
A97: Total Equity(E) | B97: ='Balance Sheet'!B4+'Balance Sheet'!B5 -> 788.47 | C97: ='Balance Sheet'!C4+'Balance Sheet'!C5 -> 698.62 | D97: ='Balance Sheet'!D4+'Balance Sheet'!D5 -> 805.42 | E97: ='Balance Sheet'!E4+'Balance Sheet'!E5 -> 1039.26 | F97: ='Balance Sheet'!F4+'Balance Sheet'!F5 -> 1302.32 | G97: ='Balance Sheet'!G4+'Balance Sheet'!G5 -> 1552.16 | H97: ='Balance Sheet'!H4+'Balance Sheet'!H5 -> 1959.32 | I97: ='Balance Sheet'!I4+'Balance Sheet'!I5 -> 2319.21 | J97: ='Balance Sheet'!J4+'Balance Sheet'!J5 -> 2770.7 | K97: ='Balance Sheet'!K4+'Balance Sheet'!K5 -> 3554.15
A98: D/E | B98: =B96/B97 -> 0.9304602585 | C98: 1.05266096 | D98: 0.8953589432 | E98: 0.7412966919 | F98: 0.5821994594 | G98: 0.563434182 | H98: 0.3901200416 | I98: 0.6310510907 | J98: 0.2353412495 | K98: 0.355198852 | P98: Last 5 Years: Op CF
A99: Cost of Funds | B99: 0.12 | P99: =P57 -> 2014 | Q99: =KeyMetrics!G104 -> 230.62
A100: Interest Outgo (Rs Cr) (Calculated) | B100: =$B$99*B96 -> 88.0368 | C100: 88.2492 | D100: 86.5368 | E100: 92.448 | F100: 90.9852 | G100: 104.9448 | H100: 91.7244 | I100: 175.6248 | J100: 78.2472 | K100: 151.4916 | L100: =SUM(B100:K100) -> 1048.2888 | P100: =P58 -> 2015 | Q100: =KeyMetrics!H104 -> -75.59
A101: Interest Coverage (Op/Int. Outgo) | B101: =B57/B100 -> 2.067203715 | C101: 2.755605717 | D101: 4.392235442 | E101: 6.955153167 | F101: 8.437636011 | G101: 8.357917686 | H101: 9.690006149 | I101: 5.503949328 | J101: 14.03730741 | K101: 7.951463976 | P101: =P59 -> 2016 | Q101: =KeyMetrics!I104 -> -336.44
P102: =P60 -> 2017 | Q102: =KeyMetrics!J104 -> 1194.13
B103: ='Cash Flow'!B3 -> 2015-03-31 | C103: ='Cash Flow'!C3 -> 2016-03-31 | D103: ='Cash Flow'!D3 -> 2017-03-31 | E103: ='Cash Flow'!E3 -> 2018-03-31 | F103: ='Cash Flow'!F3 -> 2019-03-31 | G103: ='Cash Flow'!G3 -> 2020-03-31 | H103: ='Cash Flow'!H3 -> 2021-03-31 | I103: ='Cash Flow'!I3 -> 2022-03-31 | J103: ='Cash Flow'!J3 -> 2023-03-31 | K103: ='Cash Flow'!K3 -> 2024-03-31 | L103: Total 10 Yrs | P103: =P61 -> 2018 | Q103: =KeyMetrics!K104 -> -315.64
A104: ='Cash Flow'!A4 -> Cash from Operating Activity | B104: ='Cash Flow'!B4 -> 78.4 | C104: ='Cash Flow'!C4 -> 245.85 | D104: ='Cash Flow'!D4 -> 365.67 | E104: ='Cash Flow'!E4 -> 220.57 | F104: ='Cash Flow'!F4 -> 255.91 | G104: ='Cash Flow'!G4 -> 230.62 | H104: ='Cash Flow'!H4 -> -75.59 | I104: ='Cash Flow'!I4 -> -336.44 | J104: ='Cash Flow'!J4 -> 1194.13 | K104: ='Cash Flow'!K4 -> -315.64 | L104: =SUM(B104:K104) -> 1863.48
A105: ='Cash Flow'!A5 -> Cash from Investing Activity | B105: ='Cash Flow'!B5 -> -548.95 | C105: ='Cash Flow'!C5 -> -243.99 | D105: ='Cash Flow'!D5 -> -249.63 | E105: ='Cash Flow'!E5 -> -163.28 | F105: ='Cash Flow'!F5 -> -183.5 | G105: ='Cash Flow'!G5 -> -202.09 | H105: ='Cash Flow'!H5 -> 260.19 | I105: ='Cash Flow'!I5 -> -408.48 | J105: ='Cash Flow'!J5 -> 66.81 | K105: ='Cash Flow'!K5 -> -15.08 | L105: =SUM(B105:K105) -> -1688 | P105: Debt: Equity
A106: ='Cash Flow'!A6 -> Cash from Financing Activity | B106: ='Cash Flow'!B6 -> 449.83 | C106: ='Cash Flow'!C6 -> 1.47 | D106: ='Cash Flow'!D6 -> -123.61 | E106: ='Cash Flow'!E6 -> -37.53 | F106: ='Cash Flow'!F6 -> -107.5 | G106: ='Cash Flow'!G6 -> 2.22 | H106: ='Cash Flow'!H6 -> -97.83 | I106: ='Cash Flow'!I6 -> 764.87 | J106: ='Cash Flow'!J6 -> -1217.35 | K106: ='Cash Flow'!K6 -> 496.13 | L106: =SUM(B106:K106) -> 130.7 | P106: =CONCATENATE("Debt FY",P102) -> Debt FY2017 | Q106: =KeyMetrics!J96 -> 652.06
A107: ='Cash Flow'!A7 -> Net Cash Flow | B107: ='Cash Flow'!B7 -> -20.72 | C107: ='Cash Flow'!C7 -> 3.33 | D107: ='Cash Flow'!D7 -> -7.57 | E107: ='Cash Flow'!E7 -> 19.76 | F107: ='Cash Flow'!F7 -> -35.09 | G107: ='Cash Flow'!G7 -> 30.75 | H107: ='Cash Flow'!H7 -> 86.77 | I107: ='Cash Flow'!I7 -> 19.94 | J107: ='Cash Flow'!J7 -> 43.6 | K107: ='Cash Flow'!K7 -> 165.4 | L107: =SUM(B107:K107) -> 306.17 | P107: =CONCATENATE("Debt FY",P103) -> Debt FY2018 | Q107: =KeyMetrics!K96 -> 1262.43
A108: Cash & Eq at end of Year | B108: ='Data Sheet'!B69 -> 43.55 | C108: ='Data Sheet'!C69 -> 45.21 | D108: ='Data Sheet'!D69 -> 33.81 | E108: ='Data Sheet'!E69 -> 51.98 | F108: ='Data Sheet'!F69 -> 27.47 | G108: ='Data Sheet'!G69 -> 82.87 | H108: ='Data Sheet'!H69 -> 147.84 | I108: ='Data Sheet'!I69 -> 259.2 | J108: ='Data Sheet'!J69 -> 220.2 | K108: ='Data Sheet'!K69 -> 410.89 | P108: =CONCATENATE("Equity FY",P102) -> Equity FY2017 | Q108: =KeyMetrics!J97 -> 2770.7
P109: =CONCATENATE("Equity FY",P103) -> Equity FY2018 | Q109: =KeyMetrics!K97 -> 3554.15
A110: Market Cap | B110: ='Data Sheet'!B90*'Data Sheet'!B93 -> 1193.688 | C110: ='Data Sheet'!C90*'Data Sheet'!C93 -> 1431.414 | D110: ='Data Sheet'!D90*'Data Sheet'!D93 -> 2710.2056 | E110: ='Data Sheet'!E90*'Data Sheet'!E93 -> 3993.04 | F110: ='Data Sheet'!F90*'Data Sheet'!F93 -> 3674.7216 | G110: ='Data Sheet'!G90*'Data Sheet'!G93 -> 2762.79 | H110: ='Data Sheet'!H90*'Data Sheet'!H93 -> 6000.808 | I110: ='Data Sheet'!I90*'Data Sheet'!I93 -> 7990.298 | J110: ='Data Sheet'!J90*'Data Sheet'!J93 -> 7134.044 | K110: ='Data Sheet'!K90*'Data Sheet'!K93 -> 6925.956
A111: P/B | B111: =B110/B97 -> 1.513929509 | C111: =C110/C97 -> 2.048916435 | D111: 3.3649594 | E111: 3.842195408 | F111: 2.821673321 | G111: 1.779964694 | H111: 3.062699304 | I111: 3.445267138 | J111: 2.574816472 | K111: 1.948695469

Sheet Charts
A1: ='Data Sheet'!B1 -> KNR CONSTRUCTIONS LTD
Q2: =KeyMetrics!F53 -> 2019-03-31 | R2: =KeyMetrics!G53 -> 2020-03-31 | S2: =KeyMetrics!H53 -> 2021-03-31 | T2: =KeyMetrics!I53 -> 2022-03-31 | U2: =KeyMetrics!J53 -> 2023-03-31 | V2: =KeyMetrics!K53 -> 2024-03-31 | W2: Growth (x)
P3: Sales (INR Cr) | Q3: =KeyMetrics!F54 -> 2291.5 | R3: =KeyMetrics!G54 -> 2451.68 | S3: =KeyMetrics!H54 -> 2903.63 | T3: =KeyMetrics!I54 -> 3605.82 | U3: =KeyMetrics!J54 -> 4062.36 | V3: =KeyMetrics!K54 -> 4429.49 | W3: =V3/Q3 -> 1.933008946
P4: PAT (INR Cr) | Q4: =KeyMetrics!F65 -> 270.51 | R4: =KeyMetrics!G65 -> 265.51 | S4: =KeyMetrics!H65 -> 407.38 | T4: =KeyMetrics!I65 -> 381.84 | U4: =KeyMetrics!J65 -> 458.01 | V4: =KeyMetrics!K65 -> 777.4 | W4: =V4/Q4 -> 2.873830912
P5: ROE (%) | Q5: =Q4/KeyMetrics!F97 -> 0.2077139259 | R5: =R4/KeyMetrics!G97 -> 0.171058396 | S5: =S4/KeyMetrics!H97 -> 0.207919074 | T5: =T4/KeyMetrics!I97 -> 0.1646422704 | U5: =U4/KeyMetrics!J97 -> 0.1653047966 | V5: =V4/KeyMetrics!K97 -> 0.2187302168 | W5: 1.05303588
P6: PE (x) | Q6: =Q8/Q4 -> 13.58442054 | R6: 10.40559678 | S6: 14.73024694 | T6: 20.92577519 | U6: 15.57617519 | V6: 8.909127862 | W6: 0.655834221
P7: PB (x) | Q7: =KeyMetrics!F111 -> 2.821673321 | R7: =KeyMetrics!G111 -> 1.779964694 | S7: =KeyMetrics!H111 -> 3.062699304 | T7: =KeyMetrics!I111 -> 3.445267138 | U7: =KeyMetrics!J111 -> 2.574816472 | V7: =KeyMetrics!K111 -> 1.948695469 | W7: 0.6906169661
P8: Mcap (INR Cr) | Q8: =KeyMetrics!F110 -> 3674.7216 | R8: =KeyMetrics!G110 -> 2762.79 | S8: =KeyMetrics!H110 -> 6000.808 | T8: =KeyMetrics!I110 -> 7990.298 | U8: =KeyMetrics!J110 -> 7134.044 | V8: =KeyMetrics!K110 -> 6925.956 | W8: 1.884756657
R10: 10 Years | S10: 3 Years | T10: Total Retained Earnings (10 Yrs) | W10: =KeyMetrics!L93 -> 3039.07
P11: OCF as part of Sales | R11: =KeyMetrics!L104/KeyMetrics!L54 -> 0.07292810155 | S11: =SUM(KeyMetrics!I104:K104)/SUM(KeyMetrics!I54:K54) -> 0.04480614862 | T11: Total Mcap Increase (10 Yrs) | W11: =Customization!C5 -> 5732.268
P12: OCF as part of Profits | R12: =KeyMetrics!L104/KeyMetrics!L65 -> 0.6009442359 | S12: =SUM(KeyMetrics!I104:K104)/SUM(KeyMetrics!I65:K65) -> 0.335167723 | T12: Value created per INR of RE | W12: =W11/W10 -> 1.886191499

Sheet Forecast (hidden)
B1: Annual
B2: Growth% | D2: =D10/C10-1 -> 0.3176470588 | E2: 0.3779957707 | F2: 0.2603143478 | G2: 0.1072187862 | H2: 0.06990181104 | I2: 0.1843429811 | J2: 0.2418317761 | K2: 0.1266119773 | L2: 0.09037357595 | M2: 0.15 | N2: 0.15 | O2: =MEDIAN(L2:N2) -> 0.15 | P2: =MEDIAN(M2:O2) -> 0.15 | Q2: =MEDIAN(N2:P2) -> 0.15
B3: Exp as Sales% | C3: =C11/C10 -> 0.8597744361 | D3: 0.8553974221 | E3: 0.8389530671 | F3: 0.7828614225 | G3: 0.7654069387 | H3: 0.7458926124 | I3: 0.7592978444 | J3: 0.7776622238 | K3: 0.7741017537 | L3: 0.7634603532 | M3: 0.89 | N3: =1-N4 -> 0.888 | O3: =1-O4 -> 0.887 | P3: =1-P4 -> 0.886 | Q3: =1-Q4 -> 0.885
B4: OPM % | C4: =C12/C10 -> 0.1402255639 | D4: 0.1446025779 | E4: 0.1610469329 | F4: 0.2171385775 | G4: 0.2345930613 | H4: 0.2541073876 | I4: 0.2407021556 | J4: 0.2223377762 | K4: 0.2258982463 | L4: 0.2365396468 | M4: 0.11 | N4: 0.112 | O4: 0.113 | P4: 0.114 | Q4: 0.115
B5: Tax % | C5: =C17/C16 -> -0.003917727718 | D5: -0.2426560248 | E5: 0.06611179419 | F5: -0.003198527801 | G5: 0.09395950198 | H5: 0.2112059667 | I5: 0.2634910252 | J5: 0.3496574248 | K5: 0.3549944954 | L5: 0.2109490935 | M5: 0.35 | N5: 0.35 | O5: 0.35 | P5: 0.35 | Q5: 0.35
B6: NPM % | C6: =C18/C10 -> 0.0771340115 | D6: =D18/D10 -> 0.09409405209 | E6: 0.06997009981 | F6: 0.1176459219 | G6: 0.1180493127 | H6: 0.1082971677 | I6: 0.1403002449 | J6: 0.105895469 | K6: 0.1127448084 | L6: 0.1755055322 | M6: 0.055637957 | N6: 0.05947431047 | O6: 0.06222922259 | P6: 0.06378715715 | Q6: 0.06526908805
B9: Narration | C9: ='Profit & Loss'!B3 -> 2015-03-31 | D9: ='Profit & Loss'!C3 -> 2016-03-31 | E9: ='Profit & Loss'!D3 -> 2017-03-31 | F9: ='Profit & Loss'!E3 -> 2018-03-31 | G9: ='Profit & Loss'!F3 -> 2019-03-31 | H9: ='Profit & Loss'!G3 -> 2020-03-31 | I9: ='Profit & Loss'!H3 -> 2021-03-31 | J9: ='Profit & Loss'!I3 -> 2022-03-31 | K9: ='Profit & Loss'!J3 -> 2023-03-31 | L9: ='Profit & Loss'!K3 -> 2024-03-31 | M9: =L9+365 -> 2025-03-31 | N9: =M9+365 -> 2026-03-31 | O9: 2027-03-31 | P9: 2028-03-30 | Q9: 2029-03-30 | S9: 5 Yr Cagr
B10: Sales | C10: ='Profit & Loss'!B4 -> 904.4 | D10: ='Profit & Loss'!C4 -> 1191.68 | E10: ='Profit & Loss'!D4 -> 1642.13 | F10: ='Profit & Loss'!E4 -> 2069.6 | G10: ='Profit & Loss'!F4 -> 2291.5 | H10: ='Profit & Loss'!G4 -> 2451.68 | I10: ='Profit & Loss'!H4 -> 2903.63 | J10: ='Profit & Loss'!I4 -> 3605.82 | K10: ='Profit & Loss'!J4 -> 4062.36 | L10: ='Profit & Loss'!K4 -> 4429.49 | M10: =L10*(1+M2) -> 5093.9135 | N10: =M10*(1+N2) -> 5858.000525 | O10: 6736.700604 | P10: 7747.205694 | Q10: 8909.286548 | S10: =RATE(5,,-L10,Q10,1,) -> 0.15
B11: Expenses | C11: ='Profit & Loss'!B5 -> 777.58 | D11: ='Profit & Loss'!C5 -> 1019.36 | E11: ='Profit & Loss'!D5 -> 1377.67 | F11: ='Profit & Loss'!E5 -> 1620.21 | G11: ='Profit & Loss'!F5 -> 1753.93 | H11: ='Profit & Loss'!G5 -> 1828.69 | I11: ='Profit & Loss'!H5 -> 2204.72 | J11: ='Profit & Loss'!I5 -> 2804.11 | K11: ='Profit & Loss'!J5 -> 3144.68 | L11: ='Profit & Loss'!K5 -> 3381.74 | M11: =M10-M12 -> 4533.583015 | N11: =N10-N12 -> 5201.904466 | O11: 5975.453436 | P11: 6864.024245 | Q11: 7884.718595 | S11: =RATE(5,,-L11,Q11,1,) -> 0.1844839947
B12: Operating Profit | C12: ='Profit & Loss'!B6 -> 126.82 | D12: ='Profit & Loss'!C6 -> 172.32 | E12: ='Profit & Loss'!D6 -> 264.46 | F12: ='Profit & Loss'!E6 -> 449.39 | G12: ='Profit & Loss'!F6 -> 537.57 | H12: ='Profit & Loss'!G6 -> 622.99 | I12: ='Profit & Loss'!H6 -> 698.91 | J12: ='Profit & Loss'!I6 -> 801.71 | K12: ='Profit & Loss'!J6 -> 917.68 | L12: ='Profit & Loss'!K6 -> 1047.75 | M12: =M4*M10 -> 560.330485 | N12: =N4*N10 -> 656.0960588 | O12: 761.2471682 | P12: 883.1814492 | Q12: 1024.567953 | S12: -0.004464801664
B13: Other Income | C13: ='Profit & Loss'!B7 -> 13.62 | D13: ='Profit & Loss'!C7 -> 45.75 | E13: ='Profit & Loss'!D7 -> 29.57 | F13: ='Profit & Loss'!E7 -> 54.94 | G13: ='Profit & Loss'!F7 -> 74.76 | H13: ='Profit & Loss'!G7 -> 66.39 | I13: ='Profit & Loss'!H7 -> 143.99 | J13: ='Profit & Loss'!I7 -> 77.73 | K13: ='Profit & Loss'!J7 -> 97.67 | L13: ='Profit & Loss'!K7 -> 144.69 | M13: =L13*1.1 -> 159.159 | N13: =M13*1.1 -> 175.0749 | O13: 192.58239 | P13: 211.840629 | Q13: 233.0246919 | S13: 0.1
B14: Depreciation | C14: ='Profit & Loss'!B8 -> 55.17 | D14: ='Profit & Loss'!C8 -> 70.86 | E14: ='Profit & Loss'!D8 -> 115.63 | F14: ='Profit & Loss'!E8 -> 193.6 | G14: ='Profit & Loss'!F8 -> 230.13 | H14: ='Profit & Loss'!G8 -> 254.13 | I14: ='Profit & Loss'!H8 -> 189.9 | J14: ='Profit & Loss'!I8 -> 164.92 | K14: ='Profit & Loss'!J8 -> 180.7 | L14: ='Profit & Loss'!K8 -> 156.83 | M14: =L14*1.1 -> 172.513 | N14: 189.7643 | O14: 208.74073 | P14: 229.614803 | Q14: 252.5762833 | S14: 0.1
B15: Interest | C15: ='Profit & Loss'!B9 -> 13.8 | D15: ='Profit & Loss'!C9 -> 57 | E15: ='Profit & Loss'!D9 -> 72.67 | F15: ='Profit & Loss'!E9 -> 82.5 | G15: ='Profit & Loss'!F9 -> 89.84 | H15: ='Profit & Loss'!G9 -> 110.78 | I15: ='Profit & Loss'!H9 -> 133.21 | J15: ='Profit & Loss'!I9 -> 151.14 | K15: ='Profit & Loss'!J9 -> 153.4 | L15: ='Profit & Loss'!K9 -> 105.67 | M15: =L15*1.05 -> 110.9535 | N15: =M15*0.95 -> 105.405825 | O15: =N15*0.95 -> 100.1355338 | P15: =O15*1.05 -> 105.1423104 | Q15: 110.399426 | S15: 0.00879523351
B16: Profit before tax | C16: ='Profit & Loss'!B10 -> 71.47 | D16: ='Profit & Loss'!C10 -> 90.21 | E16: ='Profit & Loss'!D10 -> 105.73 | F16: ='Profit & Loss'!E10 -> 228.23 | G16: ='Profit & Loss'!F10 -> 292.36 | H16: ='Profit & Loss'!G10 -> 324.47 | I16: ='Profit & Loss'!H10 -> 519.79 | J16: ='Profit & Loss'!I10 -> 563.38 | K16: ='Profit & Loss'!J10 -> 681.25 | L16: ='Profit & Loss'!K10 -> 929.94 | M16: =M12+M13-M14-M15 -> 436.022985 | N16: =N12+N13-N14-N15 -> 536.0008338 | O16: 644.9532945 | P16: 760.2649647 | Q16: 894.6169357 | S16: =RATE(5,,-L16,Q16,1,) -> -0.007714974838
B17: Tax | C17: ='Profit & Loss'!B11 -> -0.28 | D17: ='Profit & Loss'!C11 -> -21.89 | E17: ='Profit & Loss'!D11 -> 6.99 | F17: ='Profit & Loss'!E11 -> -0.73 | G17: ='Profit & Loss'!F11 -> 27.47 | H17: ='Profit & Loss'!G11 -> 68.53 | I17: ='Profit & Loss'!H11 -> 136.96 | J17: ='Profit & Loss'!I11 -> 196.99 | K17: ='Profit & Loss'!J11 -> 241.84 | L17: ='Profit & Loss'!K11 -> 196.17 | M17: =M16*M5 -> 152.6080447 | N17: =N16*N5 -> 187.6002918 | O17: 225.7336531 | P17: 266.0927376 | Q17: 313.1159275 | S17: 0.09803077774
B18: Net profit | C18: ='Profit & Loss'!B12 -> 69.76 | D18: ='Profit & Loss'!C12 -> 112.13 | E18: ='Profit & Loss'!D12 -> 114.9 | F18: ='Profit & Loss'!E12 -> 243.48 | G18: ='Profit & Loss'!F12 -> 270.51 | H18: ='Profit & Loss'!G12 -> 265.51 | I18: ='Profit & Loss'!H12 -> 407.38 | J18: ='Profit & Loss'!I12 -> 381.84 | K18: ='Profit & Loss'!J12 -> 458.01 | L18: ='Profit & Loss'!K12 -> 777.4 | M18: =M16-M17 -> 283.4149402 | N18: =N16-N17 -> 348.400542 | O18: 419.2196414 | P18: 494.1722271 | Q18: 581.5010082 | S18: -0.05641465501
B19: EPS | C19: ='Profit & Loss'!B13 -> 2.482562278 | D19: ='Profit & Loss'!C13 -> 3.990391459 | E19: ='Profit & Loss'!D13 -> 4.086059744 | F19: ='Profit & Loss'!E13 -> 8.658605974 | G19: ='Profit & Loss'!F13 -> 9.619843528 | H19: ='Profit & Loss'!G13 -> 9.442034139 | I19: ='Profit & Loss'!H13 -> 14.48719772 | J19: ='Profit & Loss'!I13 -> 13.57894737 | K19: ='Profit & Loss'!J13 -> 16.28769559 | L19: ='Profit & Loss'!K13 -> 27.6458037 | M19: =M18/$M$23 -> 10.07752666 | N19: =N18/$M$23 -> 12.38825218 | O19: 14.90640228 | P19: 17.57152883 | Q19: 20.67672194 | S19: -0.05643788868
B20: Price to earning | C20: ='Profit & Loss'!B14 -> 17.11135321 | D20: ='Profit & Loss'!C14 -> 12.76566485 | E20: ='Profit & Loss'!D14 -> 23.5875161 | F20: ='Profit & Loss'!E14 -> 16.39986857 | G20: ='Profit & Loss'!F14 -> 13.58442054 | H20: ='Profit & Loss'!G14 -> 10.40559678 | I20: ='Profit & Loss'!H14 -> 14.73024694 | J20: ='Profit & Loss'!I14 -> 20.92577519 | K20: ='Profit & Loss'!J14 -> 15.57617519 | L20: ='Profit & Loss'!K14 -> 8.909127862 | M20: =M21/M19 -> 33.87736014 | N20: 20 | O20: 20 | P20: 20 | Q20: 20
B21: Price | C21: ='Profit & Loss'!B15 -> 42.48 | D21: ='Profit & Loss'!C15 -> 50.94 | E21: ='Profit & Loss'!D15 -> 96.38 | F21: ='Profit & Loss'!E15 -> 142 | G21: ='Profit & Loss'!F15 -> 130.68 | H21: ='Profit & Loss'!G15 -> 98.25 | I21: ='Profit & Loss'!H15 -> 213.4 | J21: ='Profit & Loss'!I15 -> 284.15 | K21: ='Profit & Loss'!J15 -> 253.7 | L21: ='Profit & Loss'!K15 -> 246.3 | M21: ='Profit & Loss'!L15 -> 341.4 | N21: =N20*N19 -> 247.7650435 | O21: =O20*O19 -> 298.1280457 | P21: 351.4305766 | Q21: 413.5344388 | S21: 0.1091989614
L23: Nosh | M23: ='Data Sheet'!B6 -> 28.12346221
B24: Quarterly
B25: QoQ Sales | D25: =D29/C29-1 -> -0.1103721112 | E25: =E29/D29-1 -> -0.01917486868 | F25: -0.09017833931 | G25: 0.4233481536 | H25: -0.2122409321 | I25: 0.05854111027 | J25: -0.04086860224 | K25: 0.4196644612 | L25: -0.3033946252 | M25: 0.3
B26: Tax % | D26: =D36/D35 -> 0.2670003178 | E26: =E36/E35 -> 0.463453159 | F26: 0.4203227025 | G26: 0.2415763336 | H26: 0.2323208068 | I26: 0.1951329682 | J26: 0.1722225608 | K26: 0.2242040932 | L26: 0.2352130865 | M26: =MEDIAN(I26:L26) -> 0.2096685307
B27: Quarterly | C27: Contribution | D27: =D29/$K$10 -> 0.2413498557 | E27: =E29/$K$10 -> 0.236722004 | F27: 0.2153748068 | G27: 0.3065533335 | H27: =H29/$L$10 -> 0.221474707 | I27: =I29/$L$10 -> 0.2344400823 | J27: 0.2248588438 | K27: 0.3192241093
B28: Narration | C28: =Quarters!B3 -> 2022-03-31 | D28: =Quarters!C3 -> 2022-06-30 | E28: =Quarters!D3 -> 2022-09-30 | F28: =Quarters!E3 -> 2022-12-31 | G28: =Quarters!F3 -> 2023-03-31 | H28: =Quarters!G3 -> 2023-06-30 | I28: =Quarters!H3 -> 2023-09-30 | J28: =Quarters!I3 -> 2023-12-31 | K28: =Quarters!J3 -> 2024-03-31 | L28: =Quarters!K3 -> 2024-06-30 | M28: =L28+90 -> 2024-09-28 | N28: YoY | O28: QoQ
B29: Sales | C29: =Quarters!B4 -> 1102.09 | D29: =Quarters!C4 -> 980.45 | E29: =Quarters!D4 -> 961.65 | F29: =Quarters!E4 -> 874.93 | G29: =Quarters!F4 -> 1245.33 | H29: =Quarters!G4 -> 981.02 | I29: =Quarters!H4 -> 1038.45 | J29: =Quarters!I4 -> 996.01 | K29: =Quarters!J4 -> 1414 | L29: =Quarters!K4 -> 985 | M29: =L29*(1+M25) -> 1280.5 | N29: =L29/H29-1 -> 0.004057001896 | O29: =L29/K29-1 -> -0.3033946252
B30: Expenses | C30: =Quarters!B5 -> 823.22 | D30: =Quarters!C5 -> 769.19 | E30: =Quarters!D5 -> 698.36 | F30: =Quarters!E5 -> 678.14 | G30: =Quarters!F5 -> 999.36 | H30: =Quarters!G5 -> 765.28 | I30: =Quarters!H5 -> 806.86 | J30: =Quarters!I5 -> 770.1 | K30: =Quarters!J5 -> 1039.48 | L30: =Quarters!K5 -> 706.4 | M30: =M29-M31 -> 941.3395615 | N30: =L30/H30-1 -> -0.07693915952 | O30: =L30/K30-1 -> -0.3204294455
B31: Operating Profit | C31: =Quarters!B6 -> 278.87 | D31: =Quarters!C6 -> 211.26 | E31: =Quarters!D6 -> 263.29 | F31: =Quarters!E6 -> 196.79 | G31: =Quarters!F6 -> 245.97 | H31: =Quarters!G6 -> 215.74 | I31: =Quarters!H6 -> 231.59 | J31: =Quarters!I6 -> 225.91 | K31: =Quarters!J6 -> 374.52 | L31: =Quarters!K6 -> 278.6 | M31: =M29*M39 -> 339.1604385 | N31: 0.2913692408 | O31: -0.2561144932
B32: Other Income | C32: =Quarters!B7 -> 19.83 | D32: =Quarters!C7 -> 10.12 | E32: =Quarters!D7 -> 9.93 | F32: =Quarters!E7 -> 68.38 | G32: =Quarters!F7 -> 10.1 | H32: =Quarters!G7 -> 7.58 | I32: =Quarters!H7 -> 5.34 | J32: =Quarters!I7 -> 6.52 | K32: =Quarters!J7 -> 125.25 | L32: =Quarters!K7 -> 20.9 | M32: =AVERAGE(I32:L32) -> 39.5025 | N32: 1.757255937 | O32: -0.8331337325
B33: Depreciation | C33: =Quarters!B8 -> 47.82 | D33: =Quarters!C8 -> 40.97 | E33: =Quarters!D8 -> 45.01 | F33: =Quarters!E8 -> 46.48 | G33: =Quarters!F8 -> 48.24 | H33: =Quarters!G8 -> 36.4 | I33: =Quarters!H8 -> 39.21 | J33: =Quarters!I8 -> 40.68 | K33: =Quarters!J8 -> 40.54 | L33: =Quarters!K8 -> 30.07 | M33: =I33*1.32 -> 51.7572 | N33: -0.1739010989 | O33: -0.2582634435
B34: Interest | C34: =Quarters!B9 -> 43.31 | D34: =Quarters!C9 -> 54.53 | E34: =Quarters!D9 -> 44.61 | F34: =Quarters!E9 -> 33.38 | G34: =Quarters!F9 -> 20.56 | H34: =Quarters!G9 -> 20.34 | I34: =Quarters!H9 -> 20.61 | J34: =Quarters!I9 -> 27.66 | K34: =Quarters!J9 -> 37.07 | L34: =Quarters!K9 -> 37.13 | M34: 8 | N34: 0.82546706 | O34: 0.001618559482
B35: Profit before tax | C35: =Quarters!B10 -> 207.57 | D35: =Quarters!C10 -> 125.88 | E35: =Quarters!D10 -> 183.6 | F35: =Quarters!E10 -> 185.31 | G35: =Quarters!F10 -> 187.27 | H35: =Quarters!G10 -> 166.58 | I35: =Quarters!H10 -> 177.11 | J35: =Quarters!I10 -> 164.09 | K35: =Quarters!J10 -> 422.16 | L35: =Quarters!K10 -> 232.3 | M35: =M31+M32-M33-M34 -> 318.9057385 | N35: 0.3945251531 | O35: -0.4497346977
B36: Tax | C36: =Quarters!B11 -> 67.86 | D36: =Quarters!C11 -> 33.61 | E36: =Quarters!D11 -> 85.09 | F36: =Quarters!E11 -> 77.89 | G36: =Quarters!F11 -> 45.24 | H36: =Quarters!G11 -> 38.7 | I36: =Quarters!H11 -> 34.56 | J36: =Quarters!I11 -> 28.26 | K36: =Quarters!J11 -> 94.65 | L36: =Quarters!K11 -> 54.64 | M36: =M26*M35 -> 66.86449762 | N36: 0.4118863049 | O36: -0.4227152668
B37: Net profit | C37: =Quarters!B12 -> 139.16 | D37: =Quarters!C12 -> 89.61 | E37: =Quarters!D12 -> 115.37 | F37: =Quarters!E12 -> 105.76 | G37: =Quarters!F12 -> 147.27 | H37: =Quarters!G12 -> 137.11 | I37: =Quarters!H12 -> 147.38 | J37: =Quarters!I12 -> 139.61 | K37: =Quarters!J12 -> 353.3 | L37: =Quarters!K12 -> 172.58 | M37: =M35-M36 -> 252.0412408 | N37: 0.2586973963 | O37: -0.5115199547
C38: =Quarters!B13 -> 0 | D38: =Quarters!C13 -> 0 | E38: =Quarters!D13 -> 0 | F38: =Quarters!E13 -> 0 | G38: =Quarters!F13 -> 0 | H38: =Quarters!G13 -> 0 | I38: =Quarters!H13 -> 0 | J38: =Quarters!I13 -> 0 | K38: =Quarters!J13 -> 0 | L38: =Quarters!K13 -> 0
B39: OPM | C39: =Quarters!B14 -> 0.2530374107 | D39: =Quarters!C14 -> 0.2154724871 | E39: =Quarters!D14 -> 0.2737898404 | F39: =Quarters!E14 -> 0.2249208508 | G39: =Quarters!F14 -> 0.197513912 | H39: =Quarters!G14 -> 0.2199139671 | I39: =Quarters!H14 -> 0.2230150705 | J39: =Quarters!I14 -> 0.2268149918 | K39: =Quarters!J14 -> 0.2648656294 | L39: =Quarters!K14 -> 0.2828426396 | M39: =K39 -> 0.2648656294 | N39: 0.2861513224 | O39: 0.06787218943
